Workbook

Sheet Inc_Asset_TAB
A1: List used for Income & Asset Identification.
A2: Do not add new items to the ends of the lists. Insert a blank line in the middle to add to the list.
A6: Income_Description | F6: Household Relationship
A7: SS - Gross Federal | B7: 12 | F7: Head of Household
A8: SSI - Gross Federal | B8: 12 | F8: Adult co-tenant
A9: State SSI | B9: 12 | C9: 83.78 | F9: Child
A10: Pension | B10: 12 | F10: Live-in caretaker
A11: W-2 | B11: 12 | F11: Spouse
A12: Child Support | B12: 12 | F12: Foster child(ren)/adults(s)
A13: Alimony | B13: 12 | F13: Unborn child
A14: Employment | B14: 52 | F14: Other
A15: Emp. Overtime | B15: 52
A16: Bonus/Commision/Tips | B16: 1
A17: Self employment | B17: 12
A18: Monitary Gifts | B18: 12
A19: Scholarships less exp. | B19: 1
A20: Unemployement | B20: 52
A21: Military | B21: 12
A22: Housing Auth Verified | B22: 1
A23: Other | B23: 12
A24: Additional from page 3 | B24: 1
E25: Effective Date | F25: HUD Asset Threshold | G25: HUD Rate
A26: Default Period | B26: 52 | E26: 1994-01-01 | F26: 5000 | G26: 0.02
E27: 2016-01-01 | F27: 5000 | G27: 0.0006
E28: 2024-01-01 | F28: 50000 | G28: 0.004
E29: 2025-01-01 | F29: 51600 | G29: 0.0045
A30: Asset_Descriptons | E30: 2026-01-01 | F30: 52787 | G30: 0.004
A31: Checking Acct | B31: NNPP | F31: 50004
A32: Savings Acct | B32: NNPP | F32: 50005
A33: CD | B33: NNPP | F33: 50006
A34: Money Market | B34: NNPP | F34: 50007
A35: Stocks & Bonds | B35: NNPP | F35: 50008
A36: Treasury Bills | B36: NNPP | F36: 50009
A37: Other | B37: NNPP | F37: 50010
A38: Invest. Personal Pro. | B38: NNPP | F38: 50011
A39: Cash on Hand | B39: NNPP | F39: 50012
A40: Trusts - Revocable | B40: NNPP | F40: 50013
A41: Real Estate | B41: RE | F41: 50014
A42: Mortgages (Neg. value) | B42: RE | F42: 50015
A43: Life Insurance (Acc. value) | B43: NNPP | F43: 50016
A44: Lump sum receipts | B44: NNPP
A45: Safe Deposit Box | B45: NNPP
A46: Recreation Vehicle | B46: NNPP
A47: Add'l from pg 3

Sheet CountyData
B1: ADAMS | C1: ASHLAND | D1: BARRON | E1: BAYFIELD | F1: BROWN | G1: BUFFALO | H1: BURNETT | I1: CALUMET | J1: CHIPPEWA | K1: CLARK | L1: COLUMBIA | M1: CRAWFORD | N1: DANE | O1: DODGE | P1: DOOR | Q1: DOUGLAS | R1: DUNN | S1: EAU CLAIRE | T1: FLORENCE | U1: FOND DU LAC | V1: FOREST | W1: GRANT | X1: GREEN | Y1: GREEN LAKE | Z1: IOWA | AA1: IRON | AB1: JACKSON | AC1: JEFFERSON | AD1: JUNEAU | AE1: KENOSHA | AF1: KEWAUNEE | AG1: LA CROSSE | AH1: LAFAYETTE | AI1: LANGLADE | AJ1: LINCOLN | AK1: MANITOWOC | AL1: MARATHON | AM1: MARINETTE | AN1: MARQUETTE | AO1: MENOMINEE | AP1: MILWAUKEE | AQ1: MONROE | AR1: OCONTO | AS1: ONEIDA | AT1: OUTAGAMIE | AU1: OZAUKEE | AV1: PEPIN | AW1: PIERCE | AX1: POLK | AY1: PORTAGE | AZ1: PRICE | BA1: RACINE | BB1: RICHLAND | BC1: ROCK | BD1: RUSK | BE1: SAUK | BF1: SAWYER | BG1: SHAWANO | BH1: SHEBOYGAN | BI1: ST. CROIX | BJ1: TAYLOR | BK1: TREMPEALEAU | BL1: VERNON | BM1: VILAS | BN1: WALWORTH | BO1: WASHBURN | BP1: WASHINGTON | BQ1: WAUKESHA | BR1: WAUPACA | BS1: WAUSHARA | BT1: WINNEBAGO | BU1: WOOD
A2: 1/1/1987 | B2: 16400 | C2: 16400 | D2: 16400 | E2: 16400 | F2: 19900 | G2: 16400 | H2: 16400 | I2: 20200 | J2: 17050 | K2: 16400 | L2: 16800 | M2: 16400 | N2: 22100 | O2: 18250 | P2: 16400 | Q2: 16250 | R2: 15100 | S2: 17050 | T2: 16400 | U2: 19300 | V2: 16400 | W2: 16500 | X2: 18250 | Y2: 16400 | Z2: 16400 | AA2: 16400 | AB2: 16400 | AC2: 18450 | AD2: 16400 | AE2: 20500 | AF2: 16700 | AG2: 18550 | AH2: 16400 | AI2: 16400 | AJ2: 16400 | AK2: 17900 | AL2: 18400 | AM2: 16400 | AN2: 16400 | AO2: 16400 | AP2: 20900 | AQ2: 16400 | AR2: 16400 | AS2: 16400 | AT2: 20200 | AU2: 20900 | AV2: 16400 | AW2: 18400 | AX2: 16400 | AY2: 19150 | AZ2: 16400 | BA2: 20900 | BB2: 16400 | BC2: 19250 | BD2: 16400 | BE2: 16400 | BF2: 16400 | BG2: 16400 | BH2: 19400 | BI2: 25500 | BJ2: 16400 | BK2: 16400 | BL2: 16400 | BM2: 16400 | BN2: 18350 | BO2: 16400 | BP2: 20900 | BQ2: 20900 | BR2: 17650 | BS2: 16400 | BT2: 20200 | BU2: 19450
A3: 5/1/1991 | B3: 16400 | C3: 16400 | D3: 16400 | E3: 16400 | F3: 19500 | G3: 16400 | H3: 16400 | I3: 19600 | J3: 17050 | K3: 16400 | L3: 16800 | M3: 16400 | N3: 21900 | O3: 18150 | P3: 16400 | Q3: 15900 | R3: 16400 | S3: 17050 | T3: 16400 | U3: 19300 | V3: 16400 | W3: 16500 | X3: 18150 | Y3: 16400 | Z3: 16400 | AA3: 16400 | AB3: 16400 | AC3: 18450 | AD3: 16400 | AE3: 20500 | AF3: 16700 | AG3: 18300 | AH3: 16400 | AI3: 16400 | AJ3: 16400 | AK3: 17750 | AL3: 18400 | AM3: 16400 | AN3: 16400 | AO3: 16400 | AP3: 20900 | AQ3: 16400 | AR3: 16400 | AS3: 16400 | AT3: 19600 | AU3: 20900 | AV3: 16400 | AW3: 18000 | AX3: 16400 | AY3: 19150 | AZ3: 16400 | BA3: 20900 | BB3: 16400 | BC3: 19150 | BD3: 16400 | BE3: 16400 | BF3: 16400 | BG3: 16400 | BH3: 18950 | BI3: 24000 | BJ3: 16400 | BK3: 16400 | BL3: 16400 | BM3: 16400 | BN3: 18350 | BO3: 16400 | BP3: 20900 | BQ3: 20900 | BR3: 17450 | BS3: 16400 | BT3: 19600 | BU3: 19450
A4: 4/16/1992 | B4: 16400 | C4: 16400 | D4: 16400 | E4: 16400 | F4: 19900 | G4: 16400 | H4: 16400 | I4: 20200 | J4: 17050 | K4: 16400 | L4: 16800 | M4: 16400 | N4: 22100 | O4: 18250 | P4: 16400 | Q4: 16250 | R4: 16400 | S4: 17050 | T4: 16400 | U4: 19300 | V4: 16400 | W4: 16500 | X4: 18250 | Y4: 16400 | Z4: 16400 | AA4: 16400 | AB4: 16400 | AC4: 18450 | AD4: 16400 | AE4: 20500 | AF4: 16700 | AG4: 18550 | AH4: 16400 | AI4: 16400 | AJ4: 16400 | AK4: 17900 | AL4: 18400 | AM4: 16400 | AN4: 16400 | AO4: 16400 | AP4: 20900 | AQ4: 16400 | AR4: 16400 | AS4: 16400 | AT4: 20200 | AU4: 20900 | AV4: 16400 | AW4: 18400 | AX4: 16400 | AY4: 19150 | AZ4: 16400 | BA4: 20900 | BB4: 16400 | BC4: 19250 | BD4: 16400 | BE4: 16400 | BF4: 16400 | BG4: 16400 | BH4: 19400 | BI4: 25500 | BJ4: 16400 | BK4: 16400 | BL4: 16400 | BM4: 16400 | BN4: 18350 | BO4: 16400 | BP4: 20900 | BQ4: 20900 | BR4: 17650 | BS4: 16400 | BT4: 20200 | BU4: 19450
A5: 5/5/1993 | B5: 17300 | C5: 17300 | D5: 17300 | E5: 17300 | F5: 20850 | G5: 17300 | H5: 17300 | I5: 20750 | J5: 18000 | K5: 17300 | L5: 18900 | M5: 17300 | N5: 23650 | O5: 19050 | P5: 17600 | Q5: 17500 | R5: 17300 | S5: 18000 | T5: 17300 | U5: 19500 | V5: 17300 | W5: 17300 | X5: 18600 | Y5: 17300 | Z5: 17300 | AA5: 17300 | AB5: 17300 | AC5: 20350 | AD5: 17300 | AE5: 20300 | AF5: 18600 | AG5: 19250 | AH5: 17300 | AI5: 17300 | AJ5: 17300 | AK5: 18650 | AL5: 19950 | AM5: 17300 | AN5: 17300 | AO5: 17300 | AP5: 22200 | AQ5: 17300 | AR5: 17300 | AS5: 17300 | AT5: 20750 | AU5: 22200 | AV5: 17300 | AW5: 18900 | AX5: 17300 | AY5: 19900 | AZ5: 17300 | BA5: 21650 | BB5: 17300 | BC5: 20300 | BD5: 17300 | BE5: 17900 | BF5: 17300 | BG5: 17300 | BH5: 20900 | BI5: 24800 | BJ5: 17300 | BK5: 17300 | BL5: 17300 | BM5: 17300 | BN5: 20600 | BO5: 17300 | BP5: 22200 | BQ5: 22200 | BR5: 18050 | BS5: 17300 | BT5: 20750 | BU5: 19900
A6: 5/31/1994 | B6: 17950 | C6: 17950 | D6: 17950 | E6: 17950 | F6: 21350 | G6: 17950 | H6: 17950 | I6: 21650 | J6: 18700 | K6: 17950 | L6: 19650 | M6: 17950 | N6: 25200 | O6: 19900 | P6: 17950 | Q6: 18150 | R6: 17950 | S6: 18700 | T6: 17950 | U6: 19650 | V6: 17950 | W6: 17950 | X6: 18050 | Y6: 17950 | Z6: 18150 | AA6: 17950 | AB6: 17950 | AC6: 21450 | AD6: 17950 | AE6: 20300 | AF6: 17950 | AG6: 19300 | AH6: 17950 | AI6: 17950 | AJ6: 17950 | AK6: 17950 | AL6: 20750 | AM6: 17950 | AN6: 17950 | AO6: 17950 | AP6: 23200 | AQ6: 18000 | AR6: 17950 | AS6: 17950 | AT6: 21650 | AU6: 23200 | AV6: 17950 | AW6: 25500 | AX6: 17950 | AY6: 20700 | AZ6: 17950 | BA6: 22650 | BB6: 17950 | BC6: 20750 | BD6: 17950 | BE6: 18900 | BF6: 17950 | BG6: 17950 | BH6: 20800 | BI6: 25500 | BJ6: 17950 | BK6: 17950 | BL6: 17950 | BM6: 17950 | BN6: 21550 | BO6: 17950 | BP6: 23200 | BQ6: 23200 | BR6: 18300 | BS6: 17950 | BT6: 21650 | BU6: 19450
A7: 1/18/1995 | B7: 17950 | C7: 17950 | D7: 17950 | E7: 17950 | F7: 22000 | G7: 17950 | H7: 17950 | I7: 21750 | J7: 18700 | K7: 17950 | L7: 19900 | M7: 17950 | N7: 25200 | O7: 19900 | P7: 17950 | Q7: 18150 | R7: 17950 | S7: 18700 | T7: 17950 | U7: 19650 | V7: 17950 | W7: 17950 | X7: 18300 | Y7: 17950 | Z7: 18400 | AA7: 17950 | AB7: 17950 | AC7: 21450 | AD7: 17950 | AE7: 20300 | AF7: 17950 | AG7: 19300 | AH7: 17950 | AI7: 17950 | AJ7: 17950 | AK7: 17950 | AL7: 20750 | AM7: 17950 | AN7: 17950 | AO7: 17950 | AP7: 23200 | AQ7: 18000 | AR7: 17950 | AS7: 17950 | AT7: 21750 | AU7: 23200 | AV7: 17950 | AW7: 25500 | AX7: 17950 | AY7: 20850 | AZ7: 17950 | BA7: 22650 | BB7: 17950 | BC7: 20900 | BD7: 17950 | BE7: 18900 | BF7: 17950 | BG7: 17950 | BH7: 21350 | BI7: 25500 | BJ7: 17950 | BK7: 17950 | BL7: 17950 | BM7: 17950 | BN7: 21550 | BO7: 17950 | BP7: 23200 | BQ7: 23200 | BR7: 18550 | BS7: 17950 | BT7: 21750 | BU7: 19750
A8: 12/7/1995 | B8: 18850 | C8: 18850 | D8: 18850 | E8: 18850 | F8: 22000 | G8: 18850 | H8: 18850 | I8: 22250 | J8: 19350 | K8: 18850 | L8: 19900 | M8: 18850 | N8: 26450 | O8: 20700 | P8: 18850 | Q8: 19300 | R8: 18850 | S8: 19350 | T8: 18850 | U8: 20200 | V8: 18850 | W8: 18850 | X8: 18850 | Y8: 18850 | Z8: 18850 | AA8: 18850 | AB8: 18850 | AC8: 21450 | AD8: 18850 | AE8: 21350 | AF8: 18850 | AG8: 20050 | AH8: 18850 | AI8: 18850 | AJ8: 18850 | AK8: 18850 | AL8: 21600 | AM8: 18850 | AN8: 18850 | AO8: 18850 | AP8: 24350 | AQ8: 18850 | AR8: 18850 | AS8: 18850 | AT8: 22250 | AU8: 24350 | AV8: 18850 | AW8: 27300 | AX8: 18850 | AY8: 20850 | AZ8: 18850 | BA8: 23350 | BB8: 18850 | BC8: 22300 | BD8: 18850 | BE8: 19800 | BF8: 18850 | BG8: 18850 | BH8: 21400 | BI8: 27300 | BJ8: 18850 | BK8: 18850 | BL8: 18850 | BM8: 18850 | BN8: 22100 | BO8: 18850 | BP8: 24350 | BQ8: 24350 | BR8: 18850 | BS8: 18850 | BT8: 22250 | BU8: 19750
A9: 12/27/1996 | B9: 19800 | C9: 19800 | D9: 19800 | E9: 19800 | F9: 22500 | G9: 19800 | H9: 19800 | I9: 22750 | J9: 20050 | K9: 19800 | L9: 19900 | M9: 19800 | N9: 27300 | O9: 21400 | P9: 19800 | Q9: 20300 | R9: 19800 | S9: 20050 | T9: 19800 | U9: 20600 | V9: 19800 | W9: 19800 | X9: 19800 | Y9: 19800 | Z9: 19800 | AA9: 19800 | AB9: 19800 | AC9: 21850 | AD9: 19800 | AE9: 22250 | AF9: 19800 | AG9: 20900 | AH9: 19800 | AI9: 19800 | AJ9: 19800 | AK9: 19800 | AL9: 22100 | AM9: 19800 | AN9: 19800 | AO9: 19800 | AP9: 25350 | AQ9: 19800 | AR9: 19800 | AS9: 19800 | AT9: 22750 | AU9: 25350 | AV9: 19800 | AW9: 28650 | AX9: 19800 | AY9: 21100 | AZ9: 19800 | BA9: 24550 | BB9: 19800 | BC9: 23650 | BD9: 19800 | BE9: 20450 | BF9: 19800 | BG9: 19800 | BH9: 21900 | BI9: 28650 | BJ9: 19800 | BK9: 19800 | BL9: 19800 | BM9: 19800 | BN9: 23400 | BO9: 19800 | BP9: 25350 | BQ9: 25350 | BR9: 19800 | BS9: 19800 | BT9: 22750 | BU9: 19800
A10: 1/7/1998 | B10: 20900 | C10: 20900 | D10: 20900 | E10: 20900 | F10: 23100 | G10: 20900 | H10: 20900 | I10: 23350 | J10: 21050 | K10: 20900 | L10: 20900 | M10: 20900 | N10: 29000 | O10: 21900 | P10: 20900 | Q10: 21300 | R10: 20900 | S10: 21050 | T10: 20900 | U10: 23100 | V10: 20900 | W10: 20900 | X10: 20900 | Y10: 20900 | Z10: 20900 | AA10: 20900 | AB10: 20900 | AC10: 22300 | AD10: 20900 | AE10: 23700 | AF10: 20900 | AG10: 21750 | AH10: 20900 | AI10: 20900 | AJ10: 20900 | AK10: 20900 | AL10: 22650 | AM10: 20900 | AN10: 20900 | AO10: 20900 | AP10: 26950 | AQ10: 20900 | AR10: 20900 | AS10: 20900 | AT10: 23350 | AU10: 26950 | AV10: 20900 | AW10: 30400 | AX10: 20900 | AY10: 21600 | AZ10: 20900 | BA10: 25150 | BB10: 20900 | BC10: 25200 | BD10: 20900 | BE10: 20950 | BF10: 20900 | BG10: 20900 | BH10: 22400 | BI10: 30400 | BJ10: 20900 | BK10: 20900 | BL10: 20900 | BM10: 20900 | BN10: 24700 | BO10: 20900 | BP10: 26950 | BQ10: 26950 | BR10: 20900 | BS10: 20900 | BT10: 23350 | BU10: 20900
A11: 1/27/1999 | B11: 22200 | C11: 22200 | D11: 22200 | E11: 22200 | F11: 25450 | G11: 22200 | H11: 22200 | I11: 23750 | J11: 22200 | K11: 22200 | L11: 22200 | M11: 22200 | N11: 30700 | O11: 22250 | P11: 22200 | Q11: 21900 | R11: 22200 | S11: 22200 | T11: 22200 | U11: 24350 | V11: 22200 | W11: 22200 | X11: 22200 | Y11: 22200 | Z11: 22200 | AA11: 22200 | AB11: 22200 | AC11: 22700 | AD11: 22200 | AE11: 25600 | AF11: 22200 | AG11: 22200 | AH11: 22200 | AI11: 22200 | AJ11: 22200 | AK11: 22200 | AL11: 23050 | AM11: 22200 | AN11: 22200 | AO11: 22200 | AP11: 28800 | AQ11: 22200 | AR11: 22200 | AS11: 22200 | AT11: 23750 | AU11: 28800 | AV11: 22200 | AW11: 31800 | AX11: 22200 | AY11: 22200 | AZ11: 22200 | BA11: 25700 | BB11: 22200 | BC11: 26150 | BD11: 22200 | BE11: 22200 | BF11: 22200 | BG11: 22200 | BH11: 22800 | BI11: 31800 | BJ11: 22200 | BK11: 22200 | BL11: 22200 | BM11: 22200 | BN11: 25150 | BO11: 22200 | BP11: 28800 | BQ11: 28800 | BR11: 22200 | BS11: 22200 | BT11: 23750 | BU11: 22200
A12: 3/9/2000 | B12: 23350 | C12: 23350 | D12: 23350 | E12: 23350 | F12: 25800 | G12: 23350 | H12: 23350 | I12: 24100 | J12: 23400 | K12: 23350 | L12: 23350 | M12: 23350 | N12: 32000 | O12: 23350 | P12: 23350 | Q12: 22300 | R12: 23350 | S12: 23400 | T12: 23350 | U12: 24650 | V12: 23350 | W12: 23350 | X12: 23350 | Y12: 23350 | Z12: 23350 | AA12: 23350 | AB12: 23350 | AC12: 23350 | AD12: 23350 | AE12: 26850 | AF12: 23350 | AG12: 23350 | AH12: 23350 | AI12: 23350 | AJ12: 23350 | AK12: 23350 | AL12: 23350 | AM12: 23350 | AN12: 23350 | AO12: 23350 | AP12: 29700 | AQ12: 23350 | AR12: 23350 | AS12: 23350 | AT12: 24100 | AU12: 29700 | AV12: 23350 | AW12: 32850 | AX12: 23350 | AY12: 23350 | AZ12: 23350 | BA12: 26300 | BB12: 23350 | BC12: 26500 | BD12: 23350 | BE12: 23350 | BF12: 23350 | BG12: 23350 | BH12: 23350 | BI12: 32850 | BJ12: 23350 | BK12: 23350 | BL12: 23350 | BM12: 23350 | BN12: 25250 | BO12: 23350 | BP12: 29700 | BQ12: 29700 | BR12: 23350 | BS12: 23350 | BT12: 24100 | BU12: 23350
A13: 4/6/2001 | B13: 24200 | C13: 24200 | D13: 24200 | E13: 24200 | F13: 29550 | G13: 26650 | H13: 24200 | I13: 29000 | J13: 24550 | K13: 24200 | L13: 26550 | M13: 24200 | N13: 33550 | O13: 27150 | P13: 24200 | Q13: 24900 | R13: 24200 | S13: 24550 | T13: 24200 | U13: 26750 | V13: 24200 | W13: 24300 | X13: 26100 | Y13: 24200 | Z13: 30250 | AA13: 24200 | AB13: 24200 | AC13: 28500 | AD13: 24200 | AE13: 28150 | AF13: 26050 | AG13: 25450 | AH13: 24200 | AI13: 24200 | AJ13: 24200 | AK13: 28150 | AL13: 27400 | AM13: 24200 | AN13: 24200 | AO13: 24200 | AP13: 31750 | AQ13: 24200 | AR13: 24200 | AS13: 24200 | AT13: 29000 | AU13: 31750 | AV13: 24200 | AW13: 37350 | AX13: 24200 | AY13: 27300 | AZ13: 24200 | BA13: 30550 | BB13: 24200 | BC13: 28700 | BD13: 24200 | BE13: 24700 | BF13: 24200 | BG13: 24200 | BH13: 29250 | BI13: 37350 | BJ13: 24200 | BK13: 24200 | BL13: 24200 | BM13: 24200 | BN13: 29400 | BO13: 24200 | BP13: 31750 | BQ13: 31750 | BR13: 26750 | BS13: 24200 | BT13: 29000 | BU13: 28200
A14: 1/31/2002 | B14: 25400 | C14: 25400 | D14: 25400 | E14: 25400 | F14: 30950 | G14: 27300 | H14: 25400 | I14: 30950 | J14: 25750 | K14: 25400 | L14: 27900 | M14: 25400 | N14: 35650 | O14: 28400 | P14: 25400 | Q14: 25400 | R14: 25400 | S14: 25750 | T14: 25400 | U14: 27950 | V14: 25400 | W14: 25400 | X14: 28000 | Y14: 25400 | Z14: 33250 | AA14: 25400 | AB14: 25400 | AC14: 29850 | AD14: 25400 | AE14: 29850 | AF14: 26800 | AG14: 27000 | AH14: 25400 | AI14: 25400 | AJ14: 25400 | AK14: 30050 | AL14: 28850 | AM14: 25400 | AN14: 25400 | AO14: 25400 | AP14: 33600 | AQ14: 25400 | AR14: 25400 | AS14: 25400 | AT14: 30950 | AU14: 33600 | AV14: 25400 | AW14: 38350 | AX14: 25850 | AY14: 28800 | AZ14: 25400 | BA14: 32500 | BB14: 25400 | BC14: 29850 | BD14: 25400 | BE14: 26300 | BF14: 25400 | BG14: 25400 | BH14: 31350 | BI14: 38350 | BJ14: 25400 | BK14: 25400 | BL14: 25400 | BM14: 25400 | BN14: 30750 | BO14: 25400 | BP14: 33600 | BQ14: 33600 | BR14: 27450 | BS14: 25400 | BT14: 30950 | BU14: 30250
A15: 2/20/2003 | B15: 26000 | C15: 26000 | D15: 26000 | E15: 26000 | F15: 30950 | G15: 27300 | H15: 26000 | I15: 30950 | J15: 27300 | K15: 26000 | L15: 29050 | M15: 26000 | N15: 35650 | O15: 29000 | P15: 26350 | Q15: 26050 | R15: 26150 | S15: 27300 | T15: 26000 | U15: 28950 | V15: 26000 | W15: 26000 | X15: 28000 | Y15: 26000 | Z15: 33250 | AA15: 26000 | AB15: 26000 | AC15: 29850 | AD15: 26000 | AE15: 31400 | AF15: 28650 | AG15: 27450 | AH15: 26000 | AI15: 26000 | AJ15: 26000 | AK15: 30050 | AL15: 29000 | AM15: 26000 | AN15: 26000 | AO15: 26000 | AP15: 33600 | AQ15: 26000 | AR15: 26000 | AS15: 26000 | AT15: 30950 | AU15: 33600 | AV15: 26000 | AW15: 38350 | AX15: 27000 | AY15: 29350 | AZ15: 26000 | BA15: 32500 | BB15: 26000 | BC15: 29850 | BD15: 26000 | BE15: 26800 | BF15: 26000 | BG15: 26000 | BH15: 31350 | BI15: 38350 | BJ15: 26000 | BK15: 26000 | BL15: 26000 | BM15: 26000 | BN15: 30750 | BO15: 26000 | BP15: 33600 | BQ15: 33600 | BR15: 27450 | BS15: 26000 | BT15: 30950 | BU15: 30250
A16: 1/28/2004 | B16: 26450 | C16: 26450 | D16: 26450 | E16: 26450 | F16: 31500 | G16: 27300 | H16: 26450 | I16: 31350 | J16: 28100 | K16: 26450 | L16: 29300 | M16: 26450 | N16: 36600 | O16: 29150 | P16: 26600 | Q16: 26600 | R16: 26600 | S16: 28100 | T16: 26450 | U16: 29100 | V16: 26450 | W16: 26450 | X16: 28100 | Y16: 26600 | Z16: 33250 | AA16: 26450 | AB16: 26450 | AC16: 29850 | AD16: 26450 | AE16: 31400 | AF16: 29100 | AG16: 28100 | AH16: 26450 | AI16: 26450 | AJ16: 26800 | AK16: 30050 | AL16: 29250 | AM16: 26450 | AN16: 26450 | AO16: 26450 | AP16: 33600 | AQ16: 26450 | AR16: 26550 | AS16: 26450 | AT16: 31350 | AU16: 33600 | AV16: 26450 | AW16: 38350 | AX16: 27350 | AY16: 30900 | AZ16: 26450 | BA16: 32500 | BB16: 26450 | BC16: 29850 | BD16: 26450 | BE16: 27200 | BF16: 26450 | BG16: 26450 | BH16: 31350 | BI16: 38350 | BJ16: 26450 | BK16: 26450 | BL16: 26450 | BM16: 26450 | BN16: 31100 | BO16: 26450 | BP16: 33600 | BQ16: 33600 | BR16: 27450 | BS16: 26450 | BT16: 31350 | BU16: 30250
A17: 2/11/2005 | B17: 27200 | C17: 27200 | D17: 27200 | E17: 27200 | F17: 32300 | G17: 27300 | H17: 27200 | I17: 32150 | J17: 28250 | K17: 27200 | L17: 30200 | M17: 27200 | N17: 36600 | O17: 29900 | P17: 27750 | Q17: 27300 | R17: 27200 | S17: 28250 | T17: 27200 | U17: 30500 | V17: 27200 | W17: 27200 | X17: 29050 | Y17: 27200 | Z17: 33250 | AA17: 27200 | AB17: 27200 | AC17: 30850 | AD17: 27200 | AE17: 32400 | AF17: 29250 | AG17: 28950 | AH17: 27200 | AI17: 27200 | AJ17: 27300 | AK17: 30050 | AL17: 30200 | AM17: 27200 | AN17: 27200 | AO17: 27200 | AP17: 33600 | AQ17: 27200 | AR17: 27200 | AS17: 27200 | AT17: 32150 | AU17: 33600 | AV17: 27200 | AW17: 38500 | AX17: 27950 | AY17: 30900 | AZ17: 27200 | BA17: 32500 | BB17: 27200 | BC17: 30600 | BD17: 27200 | BE17: 28200 | BF17: 27200 | BG17: 27200 | BH17: 31350 | BI17: 38500 | BJ17: 27200 | BK17: 27200 | BL17: 27200 | BM17: 27200 | BN17: 31700 | BO17: 27200 | BP17: 33600 | BQ17: 33600 | BR17: 28050 | BS17: 27200 | BT17: 32150 | BU17: 30250
A18: 3/8/2006 | B18: 27450 | C18: 27450 | D18: 27450 | E18: 27450 | F18: 32300 | G18: 27450 | H18: 27450 | I18: 33800 | J18: 28900 | K18: 27450 | L18: 30950 | M18: 27450 | N18: 36600 | O18: 30650 | P18: 28350 | Q18: 27850 | R18: 27850 | S18: 28900 | T18: 27450 | U18: 31250 | V18: 27450 | W18: 27450 | X18: 29700 | Y18: 27650 | Z18: 33250 | AA18: 27450 | AB18: 27450 | AC18: 31450 | AD18: 27450 | AE18: 33050 | AF18: 32300 | AG18: 29600 | AH18: 27450 | AI18: 27450 | AJ18: 28050 | AK18: 30450 | AL18: 30950 | AM18: 27450 | AN18: 27450 | AO18: 27450 | AP18: 33600 | AQ18: 27450 | AR18: 27600 | AS18: 27450 | AT18: 33800 | AU18: 33600 | AV18: 27450 | AW18: 39250 | AX18: 28600 | AY18: 31400 | AZ18: 27450 | BA18: 32950 | BB18: 27450 | BC18: 31350 | BD18: 27450 | BE18: 28800 | BF18: 27450 | BG18: 27450 | BH18: 31700 | BI18: 39250 | BJ18: 27450 | BK18: 27450 | BL18: 27450 | BM18: 27450 | BN18: 32400 | BO18: 27450 | BP18: 33600 | BQ18: 33600 | BR18: 28700 | BS18: 27450 | BT18: 32150 | BU18: 30250
A19: 3/20/2007 | B19: 27450 | C19: 27450 | D19: 27450 | E19: 27450 | F19: 32300 | G19: 27450 | H19: 27450 | I19: 33950 | J19: 28900 | K19: 27450 | L19: 30950 | M19: 27450 | N19: 36850 | O19: 30650 | P19: 28350 | Q19: 27850 | R19: 27850 | S19: 28900 | T19: 27450 | U19: 31250 | V19: 27450 | W19: 27450 | X19: 29700 | Y19: 27650 | Z19: 33250 | AA19: 27450 | AB19: 27450 | AC19: 32300 | AD19: 27450 | AE19: 33050 | AF19: 32300 | AG19: 30200 | AH19: 27450 | AI19: 27450 | AJ19: 28050 | AK19: 30650 | AL19: 31450 | AM19: 27450 | AN19: 27450 | AO19: 27450 | AP19: 33600 | AQ19: 27450 | AR19: 27600 | AS19: 27450 | AT19: 33950 | AU19: 33600 | AV19: 27450 | AW19: 39250 | AX19: 28600 | AY19: 31400 | AZ19: 27450 | BA19: 32950 | BB19: 27450 | BC19: 31350 | BD19: 27450 | BE19: 28800 | BF19: 27450 | BG19: 27450 | BH19: 32350 | BI19: 39250 | BJ19: 27450 | BK19: 27450 | BL19: 27450 | BM19: 27450 | BN19: 32400 | BO19: 27450 | BP19: 33600 | BQ19: 33600 | BR19: 28750 | BS19: 27450 | BT19: 32150 | BU19: 30250
A20: 2/13/2008 | B20: 28100 | C20: 28100 | D20: 28100 | E20: 28100 | F20: 32300 | G20: 28100 | H20: 28100 | I20: 34300 | J20: 29950 | K20: 28100 | L20: 31800 | M20: 28100 | N20: 38800 | O20: 30650 | P20: 29100 | Q20: 29450 | R20: 28500 | S20: 29950 | T20: 28100 | U20: 31250 | V20: 28100 | W20: 28100 | X20: 30300 | Y20: 28350 | Z20: 33250 | AA20: 28100 | AB20: 28100 | AC20: 32300 | AD20: 28100 | AE20: 34350 | AF20: 32300 | AG20: 31700 | AH20: 28100 | AI20: 28100 | AJ20: 28750 | AK20: 31000 | AL20: 32000 | AM20: 28100 | AN20: 28100 | AO20: 28100 | AP20: 33850 | AQ20: 28100 | AR20: 28100 | AS20: 28100 | AT20: 34300 | AU20: 33850 | AV20: 28100 | AW20: 40450 | AX20: 29150 | AY20: 32550 | AZ20: 28100 | BA20: 32950 | BB20: 28100 | BC20: 31750 | BD20: 28100 | BE20: 29450 | BF20: 28100 | BG20: 28100 | BH20: 32350 | BI20: 40450 | BJ20: 28100 | BK20: 28100 | BL20: 28100 | BM20: 28100 | BN20: 32400 | BO20: 28100 | BP20: 33850 | BQ20: 33850 | BR20: 29300 | BS20: 28100 | BT20: 32200 | BU20: 30250
A21: 3/19/2009 | B21: 29250 | C21: 29250 | D21: 29250 | E21: 29250 | F21: 32950 | G21: 29250 | H21: 29250 | I21: 36000 | J21: 31000 | K21: 29250 | L21: 33850 | M21: 29250 | N21: 40000 | O21: 32450 | P21: 29950 | Q21: 29950 | R21: 30950 | S21: 31000 | T21: 29250 | U21: 32800 | V21: 29250 | W21: 29250 | X21: 32350 | Y21: 29450 | Z21: 33250 | AA21: 29250 | AB21: 29250 | AC21: 33750 | AD21: 29250 | AE21: 35450 | AF21: 32950 | AG21: 31700 | AH21: 29250 | AI21: 29250 | AJ21: 30100 | AK21: 32050 | AL21: 33400 | AM21: 29250 | AN21: 29250 | AO21: 29250 | AP21: 35350 | AQ21: 29250 | AR21: 29250 | AS21: 29250 | AT21: 36000 | AU21: 35350 | AV21: 29250 | AW21: 41950 | AX21: 31250 | AY21: 33750 | AZ21: 29250 | BA21: 33950 | BB21: 29250 | BC21: 32500 | BD21: 29250 | BE21: 30750 | BF21: 29250 | BG21: 29250 | BH21: 33850 | BI21: 41950 | BJ21: 29250 | BK21: 29250 | BL21: 29250 | BM21: 29250 | BN21: 34750 | BO21: 29250 | BP21: 35350 | BQ21: 35350 | BR21: 30150 | BS21: 29250 | BT21: 33450 | BU21: 31400
A22: 5/14/2010 | B22: 29300 | C22: 29300 | D22: 29300 | E22: 29300 | F22: 32950 | G22: 29300 | H22: 29300 | I22: 35650 | J22: 31850 | K22: 29300 | L22: 33350 | M22: 29300 | N22: 40000 | O22: 32300 | P22: 30250 | Q22: 30000 | R22: 30350 | S22: 31850 | T22: 29300 | U22: 33000 | V22: 29300 | W22: 29300 | X22: 32000 | Y22: 29500 | Z22: 33050 | AA22: 29300 | AB22: 29300 | AC22: 33350 | AD22: 29300 | AE22: 35500 | AF22: 32950 | AG22: 31750 | AH22: 29300 | AI22: 29300 | AJ22: 29900 | AK22: 31900 | AL22: 33600 | AM22: 29300 | AN22: 29300 | AO22: 29300 | AP22: 35550 | AQ22: 29300 | AR22: 29300 | AS22: 29300 | AT22: 35650 | AU22: 35550 | AV22: 29300 | AW22: 42000 | AX22: 30650 | AY22: 33800 | AZ22: 29300 | BA22: 33950 | BB22: 29300 | BC22: 32500 | BD22: 29300 | BE22: 30800 | BF22: 29300 | BG22: 29300 | BH22: 33500 | BI22: 42000 | BJ22: 29300 | BK22: 29300 | BL22: 29300 | BM22: 29300 | BN22: 35150 | BO22: 29300 | BP22: 35550 | BQ22: 35550 | BR22: 29850 | BS22: 29300 | BT22: 34200 | BU22: 30900
A23: 5/31/2011 | B23: 29550 | C23: 29550 | D23: 29550 | E23: 29550 | F23: 33800 | G23: 29950 | H23: 29550 | I23: 36300 | J23: 31850 | K23: 29550 | L23: 34550 | M23: 29550 | N23: 40900 | O23: 32850 | P23: 31000 | Q23: 30750 | R23: 31850 | S23: 31850 | T23: 29550 | U23: 33450 | V23: 29550 | W23: 29550 | X23: 33200 | Y23: 30950 | Z23: 34700 | AA23: 29550 | AB23: 29550 | AC23: 34950 | AD23: 29550 | AE23: 35550 | AF23: 33800 | AG23: 33300 | AH23: 30100 | AI23: 29550 | AJ23: 30800 | AK23: 32400 | AL23: 34100 | AM23: 29550 | AN23: 29550 | AO23: 29550 | AP23: 36150 | AQ23: 30350 | AR23: 29550 | AS23: 30650 | AT23: 36300 | AU23: 36150 | AV23: 29900 | AW23: 41350 | AX23: 31450 | AY23: 34450 | AZ23: 29550 | BA23: 34350 | BB23: 29550 | BC23: 32250 | BD23: 29550 | BE23: 32050 | BF23: 29550 | BG23: 29550 | BH23: 34850 | BI23: 41350 | BJ23: 29550 | BK23: 30200 | BL23: 29550 | BM23: 29550 | BN23: 36050 | BO23: 29550 | BP23: 36150 | BQ23: 36150 | BR23: 30800 | BS23: 29550 | BT23: 32500 | BU23: 30900
A24: 12/1/2011 | B24: 29950 | C24: 29950 | D24: 29950 | E24: 29950 | F24: 34250 | G24: 30350 | H24: 29950 | I24: 36800 | J24: 32250 | K24: 29950 | L24: 35000 | M24: 29950 | N24: 41450 | O24: 33300 | P24: 31450 | Q24: 31150 | R24: 32800 | S24: 32250 | T24: 29950 | U24: 33900 | V24: 29950 | W24: 29950 | X24: 33650 | Y24: 32150 | Z24: 35350 | AA24: 29950 | AB24: 29950 | AC24: 35450 | AD24: 29950 | AE24: 36050 | AF24: 34250 | AG24: 34200 | AH24: 30500 | AI24: 29950 | AJ24: 31200 | AK24: 32850 | AL24: 34600 | AM24: 29950 | AN24: 29950 | AO24: 29950 | AP24: 36600 | AQ24: 30800 | AR24: 29950 | AS24: 31050 | AT24: 36800 | AU24: 36600 | AV24: 30300 | AW24: 41950 | AX24: 31900 | AY24: 34900 | AZ24: 29950 | BA24: 34850 | BB24: 29950 | BC24: 32700 | BD24: 29950 | BE24: 32500 | BF24: 29950 | BG24: 29950 | BH24: 35300 | BI24: 41950 | BJ24: 29950 | BK24: 30600 | BL24: 29950 | BM24: 29950 | BN24: 36550 | BO24: 29950 | BP24: 36600 | BQ24: 36600 | BR24: 31200 | BS24: 29950 | BT24: 31000 | BU24: 31300
A25: 12/4/2012 | B25: 29300 | C25: 29300 | D25: 29300 | E25: 29300 | F25: 32750 | G25: 29300 | H25: 29300 | I25: 36100 | J25: 32650 | K25: 29300 | L25: 34900 | M25: 29300 | N25: 40450 | O25: 31650 | P25: 31950 | Q25: 30850 | R25: 32400 | S25: 32650 | T25: 29300 | U25: 32800 | V25: 29300 | W25: 29300 | X25: 34050 | Y25: 32550 | Z25: 35650 | AA25: 29300 | AB25: 29300 | AC25: 33700 | AD25: 29300 | AE25: 34800 | AF25: 32750 | AG25: 34600 | AH25: 30850 | AI25: 29300 | AJ25: 31450 | AK25: 32450 | AL25: 32900 | AM25: 29300 | AN25: 29300 | AO25: 29300 | AP25: 35100 | AQ25: 31200 | AR25: 29400 | AS25: 29800 | AT25: 36100 | AU25: 35100 | AV25: 30700 | AW25: 41150 | AX25: 31500 | AY25: 33800 | AZ25: 29300 | BA25: 33150 | BB25: 29300 | BC25: 31100 | BD25: 29300 | BE25: 33050 | BF25: 29300 | BG25: 29300 | BH25: 33550 | BI25: 41150 | BJ25: 29300 | BK25: 30500 | BL25: 29300 | BM25: 29300 | BN25: 34750 | BO25: 29300 | BP25: 35100 | BQ25: 35100 | BR25: 31150 | BS25: 29300 | BT25: 32550 | BU25: 30250
A26: 12/18/2013 | B26: 29450 | C26: 29450 | D26: 29450 | E26: 29450 | F26: 34100 | G26: 29450 | H26: 29450 | I26: 35600 | J26: 32400 | K26: 29450 | L26: 35400 | M26: 29450 | N26: 40400 | O26: 33150 | P26: 31750 | Q26: 32150 | R26: 31950 | S26: 32400 | T26: 29450 | U26: 33400 | V26: 29450 | W26: 29450 | X26: 33600 | Y26: 32900 | Z26: 35950 | AA26: 29450 | AB26: 29450 | AC26: 34350 | AD26: 29450 | AE26: 33100 | AF26: 34100 | AG26: 33150 | AH26: 31000 | AI26: 29450 | AJ26: 31200 | AK26: 30850 | AL26: 32700 | AM26: 29450 | AN26: 29450 | AO26: 29450 | AP26: 35150 | AQ26: 31400 | AR26: 30200 | AS26: 29450 | AT26: 35600 | AU26: 35150 | AV26: 30750 | AW26: 41450 | AX26: 30950 | AY26: 32150 | AZ26: 29450 | BA26: 34300 | BB26: 29450 | BC26: 30500 | BD26: 29450 | BE26: 33700 | BF26: 29450 | BG26: 29450 | BH26: 32550 | BI26: 41450 | BJ26: 29450 | BK26: 30800 | BL26: 29450 | BM26: 29450 | BN26: 35350 | BO26: 29450 | BP26: 35150 | BQ26: 35150 | BR26: 31350 | BS26: 29450 | BT26: 34150 | BU26: 30150
A27: 3/6/2015 | B27: 30500 | C27: 30500 | D27: 30500 | E27: 30500 | F27: 34250 | G27: 30600 | H27: 30500 | I27: 37700 | J27: 32950 | K27: 30500 | L27: 36850 | M27: 30500 | N27: 41300 | O27: 32700 | P27: 32100 | Q27: 31900 | R27: 32250 | S27: 32950 | T27: 30500 | U27: 32350 | V27: 30500 | W27: 30500 | X27: 35100 | Y27: 32250 | Z27: 36850 | AA27: 30500 | AB27: 30500 | AC27: 36350 | AD27: 30500 | AE27: 35050 | AF27: 34250 | AG27: 35100 | AH27: 31600 | AI27: 30500 | AJ27: 31750 | AK27: 32650 | AL27: 31650 | AM27: 30500 | AN27: 30500 | AO27: 30500 | AP27: 36650 | AQ27: 32350 | AR27: 31650 | AS27: 30500 | AT27: 37700 | AU27: 36650 | AV27: 31700 | AW27: 43300 | AX27: 31100 | AY27: 31750 | AZ27: 30500 | BA27: 32750 | BB27: 30500 | BC27: 30500 | BD27: 30500 | BE27: 34400 | BF27: 30500 | BG27: 30500 | BH27: 34450 | BI27: 43300 | BJ27: 30500 | BK27: 31450 | BL27: 30500 | BM27: 30500 | BN27: 33700 | BO27: 30500 | BP27: 36650 | BQ27: 36650 | BR27: 31750 | BS27: 30500 | BT27: 35050 | BU27: 31250
A28: 3/28/2016 | B28: 30100 | C28: 30100 | D28: 30100 | E28: 30100 | F28: 33300 | G28: 30150 | H28: 30100 | I28: 36900 | J28: 34400 | K28: 30100 | L28: 36050 | M28: 30100 | N28: 41950 | O28: 32550 | P28: 32500 | Q28: 31900 | R28: 31850 | S28: 34400 | T28: 30100 | U28: 33050 | V28: 30100 | W28: 30200 | X28: 35150 | Y28: 30950 | Z28: 35950 | AA28: 30100 | AB28: 30100 | AC28: 34550 | AD28: 30100 | AE28: 34000 | AF28: 33300 | AG28: 33850 | AH28: 30600 | AI28: 30100 | AJ28: 31500 | AK28: 31600 | AL28: 32700 | AM28: 30100 | AN28: 30100 | AO28: 30100 | AP28: 35100 | AQ28: 31750 | AR28: 32100 | AS28: 30100 | AT28: 36900 | AU28: 35100 | AV28: 30150 | AW28: 42900 | AX28: 30200 | AY28: 33200 | AZ28: 30100 | BA28: 34350 | BB28: 30100 | BC28: 30100 | BD28: 30100 | BE28: 33650 | BF28: 30100 | BG28: 30100 | BH28: 32750 | BI28: 42900 | BJ28: 30100 | BK28: 31400 | BL28: 30100 | BM28: 30100 | BN28: 35250 | BO28: 30100 | BP28: 35100 | BQ28: 35100 | BR28: 31600 | BS28: 30100 | BT28: 33400 | BU28: 32100
A29: 4/14/2017 | B29: 31300 | C29: 31300 | D29: 31300 | E29: 31300 | F29: 34950 | G29: 31300 | H29: 31300 | I29: 37350 | J29: 33700 | K29: 31300 | L29: 37000 | M29: 31300 | N29: 42600 | O29: 34400 | P29: 32400 | Q29: 33600 | R29: 32150 | S29: 33700 | T29: 31300 | U29: 32650 | V29: 31300 | W29: 31300 | X29: 34650 | Y29: 31300 | Z29: 35250 | AA29: 31300 | AB29: 31300 | AC29: 35150 | AD29: 31300 | AE29: 34850 | AF29: 34950 | AG29: 36000 | AH29: 31800 | AI29: 31300 | AJ29: 31750 | AK29: 31900 | AL29: 34950 | AM29: 31300 | AN29: 31300 | AO29: 31300 | AP29: 36200 | AQ29: 31300 | AR29: 32550 | AS29: 31300 | AT29: 37350 | AU29: 36200 | AV29: 31350 | AW29: 45200 | AX29: 31300 | AY29: 35500 | AZ29: 31300 | BA29: 33650 | BB29: 31300 | BC29: 31600 | BD29: 31300 | BE29: 33300 | BF29: 31300 | BG29: 31300 | BH29: 34500 | BI29: 45200 | BJ29: 31300 | BK29: 32000 | BL29: 31300 | BM29: 31300 | BN29: 33500 | BO29: 31300 | BP29: 36200 | BQ29: 36200 | BR29: 32250 | BS29: 31300 | BT29: 33850 | BU29: 34000
A30: 4/1/2018 | B30: 33900 | C30: 33900 | D30: 33900 | E30: 33900 | F30: 38750 | G30: 33900 | H30: 33900 | I30: 38950 | J30: 36000 | K30: 33900 | L30: 37950 | M30: 33900 | N30: 45850 | O30: 37350 | P30: 34150 | Q30: 35700 | R30: 33900 | S30: 36000 | T30: 33900 | U30: 36350 | V30: 33900 | W30: 33900 | X30: 36300 | Y30: 33900 | Z30: 36800 | AA30: 33900 | AB30: 33900 | AC30: 38150 | AD30: 33900 | AE30: 37150 | AF30: 38750 | AG30: 36200 | AH30: 33900 | AI30: 33900 | AJ30: 33900 | AK30: 33900 | AL30: 36350 | AM30: 33900 | AN30: 33900 | AO30: 33900 | AP30: 38650 | AQ30: 33900 | AR30: 33900 | AS30: 33900 | AT30: 38950 | AU30: 38650 | AV30: 33900 | AW30: 47150 | AX30: 33900 | AY30: 38300 | AZ30: 33900 | BA30: 37500 | BB30: 33900 | BC30: 33900 | BD30: 33900 | BE30: 34100 | BF30: 33900 | BG30: 33900 | BH30: 37350 | BI30: 47150 | BJ30: 33900 | BK30: 34000 | BL30: 33900 | BM30: 33900 | BN30: 37300 | BO30: 33900 | BP30: 38650 | BQ30: 38650 | BR30: 33900 | BS30: 33900 | BT30: 35550 | BU30: 34200
A31: 4/24/2019 | B31: 34200 | C31: 34200 | D31: 34200 | E31: 34200 | F31: 40900 | G31: 34200 | H31: 34200 | I31: 41900 | J31: 36650 | K31: 34200 | L31: 39150 | M31: 34200 | N31: 50200 | O31: 36400 | P31: 35800 | Q31: 36200 | R31: 34550 | S31: 36650 | T31: 34200 | U31: 37650 | V31: 34200 | W31: 34200 | X31: 38450 | Y31: 34200 | Z31: 37300 | AA31: 34200 | AB31: 34200 | AC31: 38650 | AD31: 34200 | AE31: 40800 | AF31: 40900 | AG31: 39300 | AH31: 34200 | AI31: 34200 | AJ31: 34200 | AK31: 34450 | AL31: 36600 | AM31: 34200 | AN31: 34200 | AO31: 34200 | AP31: 41150 | AQ31: 34600 | AR31: 34600 | AS31: 34200 | AT31: 41900 | AU31: 41150 | AV31: 34800 | AW31: 50000 | AX31: 34200 | AY31: 36400 | AZ31: 34200 | BA31: 35650 | BB31: 34200 | BC31: 34200 | BD31: 34200 | BE31: 35250 | BF31: 34200 | BG31: 34200 | BH31: 38450 | BI31: 50000 | BJ31: 34200 | BK31: 35150 | BL31: 34200 | BM31: 34200 | BN31: 39150 | BO31: 34200 | BP31: 41150 | BQ31: 41150 | BR31: 34250 | BS31: 34200 | BT31: 39100 | BU31: 35300
A32: 4/1/2020 | B32: 35400 | C32: 35400 | D32: 35400 | E32: 35400 | F32: 41150 | G32: 35400 | H32: 35400 | I32: 43200 | J32: 38350 | K32: 35400 | L32: 40900 | M32: 35400 | N32: 50050 | O32: 38750 | P32: 37250 | Q32: 38400 | R32: 35750 | S32: 38350 | T32: 35400 | U32: 39600 | V32: 35400 | W32: 35400 | X32: 39500 | Y32: 35400 | Z32: 39250 | AA32: 35400 | AB32: 35400 | AC32: 38300 | AD32: 35400 | AE32: 38850 | AF32: 41150 | AG32: 38400 | AH32: 35400 | AI32: 35400 | AJ32: 35850 | AK32: 37150 | AL32: 39500 | AM32: 35400 | AN32: 35400 | AO32: 35400 | AP32: 41900 | AQ32: 36050 | AR32: 35400 | AS32: 35400 | AT32: 43200 | AU32: 41900 | AV32: 35400 | AW32: 51700 | AX32: 35400 | AY32: 39250 | AZ32: 35400 | BA32: 38450 | BB32: 35400 | BC32: 35400 | BD32: 35400 | BE32: 36250 | BF32: 35400 | BG32: 35400 | BH32: 36700 | BI32: 51700 | BJ32: 35400 | BK32: 35950 | BL32: 35400 | BM32: 35400 | BN32: 39500 | BO32: 35400 | BP32: 41900 | BQ32: 41900 | BR32: 35900 | BS32: 35400 | BT32: 40400 | BU32: 36800
A33: 4/1/2021 | B33: 35900 | C33: 35900 | D33: 35900 | E33: 35900 | F33: 40350 | G33: 35900 | H33: 35900 | I33: 42800 | J33: 40000 | K33: 35900 | L33: 41600 | M33: 35900 | N33: 51550 | O33: 38950 | P33: 37000 | Q33: 38150 | R33: 36900 | S33: 40000 | T33: 35900 | U33: 37650 | V33: 35900 | W33: 35900 | X33: 40350 | Y33: 35900 | Z33: 40750 | AA33: 35900 | AB33: 35900 | AC33: 39400 | AD33: 35900 | AE33: 40750 | AF33: 40350 | AG33: 40300 | AH33: 35900 | AI33: 35900 | AJ33: 36600 | AK33: 36100 | AL33: 39650 | AM33: 35900 | AN33: 35900 | AO33: 35900 | AP33: 42200 | AQ33: 36600 | AR33: 35900 | AS33: 36200 | AT33: 42800 | AU33: 42200 | AV33: 36350 | AW33: 52450 | AX33: 35900 | AY33: 40200 | AZ33: 35900 | BA33: 38600 | BB33: 35900 | BC33: 36500 | BD33: 35900 | BE33: 37550 | BF33: 35900 | BG33: 35900 | BH33: 38500 | BI33: 52450 | BJ33: 35900 | BK33: 36650 | BL33: 35900 | BM33: 35900 | BN33: 39350 | BO33: 35900 | BP33: 42200 | BQ33: 42200 | BR33: 37150 | BS33: 35900 | BT33: 38750 | BU33: 35900
A34: 4/18/2022 | B34: 40150 | C34: 40150 | D34: 40150 | E34: 40150 | F34: 45100 | G34: 40150 | H34: 40150 | I34: 47850 | J34: 44750 | K34: 40150 | L34: 46250 | M34: 40150 | N34: 57650 | O34: 40750 | P34: 41150 | Q34: 42650 | R34: 41050 | S34: 44750 | T34: 40150 | U34: 42100 | V34: 40150 | W34: 40150 | X34: 44400 | Y34: 40150 | Z34: 45250 | AA34: 40150 | AB34: 40150 | AC34: 44050 | AD34: 40150 | AE34: 44750 | AF34: 45100 | AG34: 45050 | AH34: 40150 | AI34: 40150 | AJ34: 40750 | AK34: 40350 | AL34: 43800 | AM34: 40150 | AN34: 40150 | AO34: 40150 | AP34: 47200 | AQ34: 40750 | AR34: 40150 | AS34: 40500 | AT34: 47850 | AU34: 47200 | AV34: 40650 | AW34: 58650 | AX34: 40150 | AY34: 44950 | AZ34: 40150 | BA34: 43150 | BB34: 40150 | BC34: 40750 | BD34: 40150 | BE34: 41100 | BF34: 40150 | BG34: 40150 | BH34: 42300 | BI34: 58650 | BJ34: 40150 | BK34: 40750 | BL34: 40150 | BM34: 40150 | BN34: 44000 | BO34: 40150 | BP34: 47200 | BQ34: 47200 | BR34: 40750 | BS34: 40150 | BT34: 42500 | BU34: 40150
A35: 5/15/2023 | B35: 42500 | C35: 42500 | D35: 42500 | E35: 42500 | F35: 47750 | G35: 42500 | H35: 42500 | I35: 50650 | J35: 45650 | K35: 42500 | L35: 48950 | M35: 42500 | N35: 61050 | O35: 43150 | P35: 43550 | Q35: 45150 | R35: 43450 | S35: 45650 | T35: 42500 | U35: 44550 | V35: 42500 | W35: 42500 | X35: 47000 | Y35: 42500 | Z35: 47900 | AA35: 42500 | AB35: 42500 | AC35: 46650 | AD35: 42500 | AE35: 47350 | AF35: 47750 | AG35: 46700 | AH35: 42500 | AI35: 42500 | AJ35: 43150 | AK35: 42700 | AL35: 46350 | AM35: 42500 | AN35: 42500 | AO35: 42500 | AP35: 49950 | AQ35: 43000 | AR35: 42500 | AS35: 42850 | AT35: 50650 | AU35: 49950 | AV35: 43000 | AW35: 62100 | AX35: 42500 | AY35: 45950 | AZ35: 42500 | BA35: 45700 | BB35: 42500 | BC35: 43150 | BD35: 42500 | BE35: 43500 | BF35: 42500 | BG35: 42500 | BH35: 44800 | BI35: 62100 | BJ35: 42500 | BK35: 43150 | BL35: 42500 | BM35: 42500 | BN35: 46600 | BO35: 42500 | BP35: 49950 | BQ35: 49950 | BR35: 43150 | BS35: 42500 | BT35: 45000 | BU35: 42500
A36: 4/1/2024 | B36: 43300 | C36: 43300 | D36: 43300 | E36: 43300 | F36: 49000 | G36: 43300 | H36: 43300 | I36: 52000 | J36: 49700 | K36: 43300 | L36: 49800 | M36: 43300 | N36: 62950 | O36: 45850 | P36: 46150 | Q36: 47600 | R36: 47200 | S36: 49700 | T36: 43300 | U36: 47850 | V36: 43300 | W36: 44150 | X36: 49000 | Y36: 43300 | Z36: 52650 | AA36: 43300 | AB36: 43300 | AC36: 50200 | AD36: 43300 | AE36: 48900 | AF36: 49000 | AG36: 49200 | AH36: 43750 | AI36: 43300 | AJ36: 45300 | AK36: 43300 | AL36: 47400 | AM36: 43300 | AN36: 43300 | AO36: 43300 | AP36: 51050 | AQ36: 43300 | AR36: 46750 | AS36: 44600 | AT36: 52000 | AU36: 51050 | AV36: 44500 | AW36: 62100 | AX36: 46000 | AY36: 49550 | AZ36: 43300 | BA36: 48650 | BB36: 43300 | BC36: 43300 | BD36: 43300 | BE36: 47850 | BF36: 43300 | BG36: 43300 | BH36: 43400 | BI36: 62100 | BJ36: 43300 | BK36: 45550 | BL36: 44150 | BM36: 43300 | BN36: 50600 | BO36: 43300 | BP36: 51050 | BQ36: 51050 | BR36: 44750 | BS36: 43300 | BT36: 49500 | BU36: 43300
A37: 4/1/2025 | B37: 46400 | C37: 46400 | D37: 46400 | E37: 46400 | F37: 53500 | G37: 46400 | H37: 46400 | I37: 55750 | J37: 51600 | K37: 46400 | L37: 53050 | M37: 46400 | N37: 64900 | O37: 49250 | P37: 50400 | Q37: 50300 | R37: 49400 | S37: 51600 | T37: 46400 | U37: 48900 | V37: 46400 | W37: 46400 | X37: 52900 | Y37: 46400 | Z37: 56700 | AA37: 46400 | AB37: 46400 | AC37: 54800 | AD37: 46400 | AE37: 53400 | AF37: 53500 | AG37: 53700 | AH37: 46650 | AI37: 46400 | AJ37: 47500 | AK37: 47250 | AL37: 49400 | AM37: 46400 | AN37: 46400 | AO37: 46400 | AP37: 55350 | AQ37: 46400 | AR37: 48950 | AS37: 48150 | AT37: 55750 | AU37: 55350 | AV37: 46900 | AW37: 66200 | AX37: 48750 | AY37: 48900 | AZ37: 46400 | BA37: 49300 | BB37: 46400 | BC37: 47250 | BD37: 46400 | BE37: 51300 | BF37: 46400 | BG37: 46400 | BH37: 47400 | BI37: 66200 | BJ37: 46400 | BK37: 48850 | BL37: 47700 | BM37: 46400 | BN37: 54800 | BO37: 46400 | BP37: 55350 | BQ37: 55350 | BR37: 47400 | BS37: 46400 | BT37: 51800 | BU37: 46400
A38: 5/1/2026 | B38: 48000 | C38: 48000 | D38: 48000 | E38: 48000 | F38: 53150 | G38: 48000 | H38: 48000 | I38: 55600 | J38: 50650 | K38: 48000 | L38: 53650 | M38: 48000 | N38: 67650 | O38: 50850 | P38: 52400 | Q38: 50550 | R38: 50350 | S38: 50650 | T38: 48000 | U38: 52900 | V38: 48000 | W38: 48000 | X38: 55000 | Y38: 48000 | Z38: 55450 | AA38: 48000 | AB38: 48000 | AC38: 55850 | AD38: 48000 | AE38: 58650 | AF38: 53150 | AG38: 52900 | AH38: 48400 | AI38: 48000 | AJ38: 48000 | AK38: 48000 | AL38: 51800 | AM38: 48000 | AN38: 48000 | AO38: 48000 | AP38: 54200 | AQ38: 48000 | AR38: 49750 | AS38: 48000 | AT38: 55600 | AU38: 54200 | AV38: 48000 | AW38: 65750 | AX38: 48900 | AY38: 53150 | AZ38: 48000 | BA38: 52150 | BB38: 48000 | BC38: 48000 | BD38: 48000 | BE38: 51550 | BF38: 48000 | BG38: 48000 | BH38: 51600 | BI38: 65750 | BJ38: 48000 | BK38: 50350 | BL38: 48000 | BM38: 48000 | BN38: 59450 | BO38: 48000 | BP38: 54200 | BQ38: 54200 | BR38: 48150 | BS38: 48000 | BT38: 50250 | BU38: 48000
B40: =IF(B39<>"",B38,"") ->  | C40: =IF(C39<>"",C38,"") ->  | BO40: =IF(BO39<>"",BO38,"") -> 

Sheet Instructions
A6: EnterCounty&Defaults Tab
A7: Enter Project information
A8: Enter the Date of the Award Letter. This will establish the Rent Floor. In the event Income/Rents Limits decrease before the Project is Placed-in-Service, the Rent will never fall below the Rent on this date.
A9: Enter the Date the Loan closes. This will establish the the Floor for the Income Limits in the event future Income/Rent Limits decrease.
A10: Once this information is entered, there is no further need to update this Tab for this project.
A14: TIC
A15: Part I, enter Date of Move-in, Unit number and number of bedrooms.
A17: Part II, enter all household member names, Relationship to Head of Household from Dropdown and Date of Birth
A18: If entering an unborn child to count toward eligibility, enter a last name and select "Unborn child" from the dropdown.
A19: Names entered and relationship will determine eligible household members for Income Limit.
A21: Part III
A22: Enter Income Source from Dropdown List
A23: Enter Pay Rate, Period and Hour per Period, as appropriate. If entering annual amount, then enter 1 for period.
A24: If there are not enough rows, enter additional Income on Page 3 Tab
A26: Part IV
A27: Enter asset Type, Balance
A28: Enter Interest rate or Annual Earnings. If left blank, asset will be treated as an asset that does not have any earnings and will be imputed if Total Assets are above the Imputed Asset Threshold.
A29: If there are not enough rows, enter additional Assets on Page 3 Tab
A31: HOUSEHOLD CERTIFICATION & SIGNATURES
A32: Have all adult household members sign and date the TIC
A34: Part V
A35: Enter the tenant paid rent, Utility Allowance, Rental Assistance and Non-optional charges.
A36: Verify the household qualifies under the Income and Rent Restrictions.
A38: SIGNATURE OF OWNER REPRESENTATIVE
A39: Owner or owner representative signs and dates the form.
A41: Clearing the TIC and Page 3 forms
A42: After printing the form, delete all cells in the appropriate white areas. Note: all columns that can not be deleted are protected.
A45: Admin Notes
A46: WHEDA will update the form as necessary.
A47: There are 2 hidden tabs for updating the income/rent and HUD Imputed Assets/Passbook Rate.
A48: Right click on any tab to update these tabs.
A49: Click on Formulas, Name Manager to update the definition range for Income/Rent
A51: Updates
A52: 11/20/25 - Updated Income Limits; HOTMA changes to asset calculation

Sheet TIC Example
A1: TENANT INCOME CERTIFICATION AFFIDAVIT | F1: Move-In Date | G1: 2024-08-01 | N1: TENANT INCOME CERTIFICATION AFFIDAVIT | S1: Move-In Date
A2: PART I. DEVELOPMENT DATA | N2: PART I. DEVELOPMENT DATA
A3: Property: | B3: =ProjectName -> 0 | E3: County: | F3: =CountyName -> 0 | N3: Property: | O3: =ProjectName -> 0 | R3: County: | S3: =CountyName -> 0
A4: Address: | B4: =PropertyAddress -> 0 | E4: Unit No. | F4: 205 | G4: #Bedrooms: | H4: 2 | N4: Address: | O4: =PropertyAddress -> 0 | R4: Unit No. | T4: #Bedrooms:
A6: PART II. HOUSEHOLD COMPOSITION | N6: PART II. HOUSEHOLD COMPOSITION
A7: HH Mbr # | B7: Last Name | C7: First Name / Initial | D7: Relationship to Head of Household | F7: Date of Birth | N7: HH Mbr # | O7: Last Name | P7: First Name / Initial | Q7: Relationship to Head of Household | S7: Date of Birth
A8: 1 | B8: Smith | C8: Frank | D8: Head of Household | F8: 1901-01-15 | G8: =IF(AND(B8<>"",D8<>"Live-in caretaker"),1,"") -> 1 | N8: 1 | T8: =IF(AND(O8<>"",Q8<>"Live-in caretaker"),1,"") -> 
A9: 2 | B9: Smith | C9: Mildred | D9: Spouse | F9: 1968-10-05 | G9: =IF(AND(B9<>"",D9<>"Live-in caretaker"),1,"") -> 1 | N9: 2 | T9: =IF(AND(O9<>"",Q9<>"Live-in caretaker"),1,"") -> 
A10: 3 | B10: Smith | C10: Harry | D10: Child | F10: 2010-04-05 | G10: 1 | N10: 3
A11: 4 | B11: Martin | C11: Lois | D11: Live-in caretaker | F11: 2001-03-15 | N11: 4
A12: 5 | B12: Smith | D12: Unborn child | G12: 1 | N12: 5
A13: 6 | N13: 6
A14: 7 | N14: 7
A15: 8 | N15: 8
A16: PART III. GROSS ANNUAL INCOME | N16: PART III. GROSS ANNUAL INCOME
C17: (A) | D17: (B) | P17: (A) | Q17: (B)
B18: =A7 -> HH Mbr # | C18: Income Type | D18: Pay | E18: Period | F18: Hours | G18: Annual Amt | O18: =N7 -> HH Mbr # | P18: Income Type | Q18: Pay | R18: Period | S18: Hours | T18: Annual Amt
B19: 1 | C19: Employment | D19: 25 | E19: 52 | F19: 40 | G19: =IFERROR(IF(F19<>0,+D19*F19*E19,+D19*E19),0) -> 52000 | R19: =IF(Q19<>"",IF(P19<>"",VLOOKUP(P19,Income_Defaults,2,0),DefaultPeriod),"") ->  | S19: =IF(R19=52,40,0) -> 0 | T19: =IFERROR(IF(S19<>0,+Q19*S19*R19,+Q19*R19),0) -> 0
B20: 1 | C20: SS - Gross Federal | D20: 1500 | E20: 12 | F20: 0 | G20: =IFERROR(IF(F20<>0,+D20*F20*E20,+D20*E20),0) -> 18000 | R20: =IF(Q20<>"",IF(P20<>"",VLOOKUP(P20,Income_Defaults,2,0),DefaultPeriod),"") ->  | S20: =IF(R20=52,40,0) -> 0 | T20: =IFERROR(IF(S20<>0,+Q20*S20*R20,+Q20*R20),0) -> 0
B21: 2 | C21: SSI - Gross Federal | D21: 450 | E21: 12 | F21: 0 | G21: 5400 | R21: =IF(Q21<>"",IF(P21<>"",VLOOKUP(P21,Income_Defaults,2,0),DefaultPeriod),"") ->  | S21: 0 | T21: 0
B22: 2 | C22: State SSI | D22: 83.78 | E22: 12 | F22: 0 | G22: 1005.36 | R22: =IF(Q22<>"",IF(P22<>"",VLOOKUP(P22,Income_Defaults,2,0),DefaultPeriod),"") ->  | S22: 0 | T22: 0
F23: =IF(E23=52,40,0) -> 0 | G23: 0 | S23: 0 | T23: 0
F24: 0 | G24: 0 | S24: 0 | T24: 0
F25: 0 | G25: 0 | S25: 0 | T25: 0
F26: 0 | G26: 0 | S26: 0 | T26: 0
F27: 0 | G27: 0 | S27: 0 | T27: 0
F28: 0 | G28: 0 | S28: 0 | T28: 0
F29: 0 | G29: 0 | S29: 0 | T29: 0
C30: =IF('Page 3 Example'!G22>0,"Additional from Page 3","") -> Additional from Page 3 | G30: =IF(C30<>"",'Page 3 Example'!G22,"") -> 41600 | P30: =IF(#REF!>0,"Additional from Page 3","") ->  | T30: =IF(P30<>"",#REF!,"") -> 
B31: TOTALS | G31: =SUM(G19:G30) -> 118005.36 | O31: TOTALS | T31: =SUM(T19:T30) -> 
A32: PART IV. INCOME FROM ASSETS | N32: PART IV. INCOME FROM ASSETS
B33: =A7 -> HH Mbr # | C33: Asset Type | D33: Cash Value | E33: Int. rate | F33: or Actual $ | G33: Income | O33: =N7 -> HH Mbr # | P33: Asset Type | Q33: Cash Value | R33: Int. rate | S33: or Actual $ | T33: Income | W33: NNPP Bal | X33: RE Bal | Y33: NNPP Inc. | Z33: RE Inc.
B34: 1 | C34: Checking Acct | D34: 5000 | E34: 0.0004 | G34: =SUM(Y34:Z34) ->  | T34: =IF(AND($D$54>VLOOKUP($G$1,HUDAssetThreshold,2,1),AND(R34="",S34="")),Q34*VLOOKUP($G$1,HUDImputedRate,3,1),IF(S34=0,Q34*R34,S34)) ->  | W34: =IFERROR(IF(VLOOKUP($C34,Asset_Description_Type,2,0)="NNPP",$D34,0),0) -> 5000 | X34: =IFERROR(IF(VLOOKUP($C34,Asset_Description_Type,2,0)="RE",$D34,0),0) -> 0 | Y34: =IF(AND(NNPP_Total>VLOOKUP(MI_Date,HUDAssetThreshold,2,1),AND($E34="",$F34="")),W34*VLOOKUP(MI_Date,HUDImputedRate,3,1),IF($F34=0,W34*$E34,$F34)) ->  | Z34: =IF(AND(Net_Family_Assets_Total>VLOOKUP(MI_Date,HUDAssetThreshold,2,1),AND($E34="",$F34="")),X34*VLOOKUP(MI_Date,HUDImputedRate,3,1),IF($F34=0,X34*$E34,$F34)) -> 
B35: 1 | C35: Savings Acct | D35: 5000 | E35: 0.0005 | G35: =SUM(Y35:Z35) ->  | T35: =IF(AND($D$54>VLOOKUP($G$1,HUDAssetThreshold,2,1),AND(R35="",S35="")),Q35*VLOOKUP($G$1,HUDImputedRate,3,1),IF(S35=0,Q35*R35,S35)) ->  | W35: =IFERROR(IF(VLOOKUP($C35,Asset_Description_Type,2,0)="NNPP",$D35,0),0) -> 5000 | X35: =IFERROR(IF(VLOOKUP($C35,Asset_Description_Type,2,0)="RE",$D35,0),0) -> 0 | Y35: =IF(AND(NNPP_Total>VLOOKUP(MI_Date,HUDAssetThreshold,2,1),AND($E35="",$F35="")),W35*VLOOKUP(MI_Date,HUDImputedRate,3,1),IF($F35=0,W35*$E35,$F35)) ->  | Z35: =IF(AND(Net_Family_Assets_Total>VLOOKUP(MI_Date,HUDAssetThreshold,2,1),AND($E35="",$F35="")),X35*VLOOKUP(MI_Date,HUDImputedRate,3,1),IF($F35=0,X35*$E35,$F35)) -> 
B36: 1 | C36: Real Estate | D36: 150000 | G36: =SUM(Y36:Z36) ->  | T36: =IF(AND($D$54>VLOOKUP($G$1,HUDAssetThreshold,2,1),AND(R36="",S36="")),Q36*VLOOKUP($G$1,HUDImputedRate,3,1),IF(S36=0,Q36*R36,S36)) ->  | W36: =IFERROR(IF(VLOOKUP($C36,Asset_Description_Type,2,0)="NNPP",$D36,0),0) -> 0 | X36: =IFERROR(IF(VLOOKUP($C36,Asset_Description_Type,2,0)="RE",$D36,0),0) -> 150000 | Y36: =IF(AND(NNPP_Total>VLOOKUP(MI_Date,HUDAssetThreshold,2,1),AND($E36="",$F36="")),W36*VLOOKUP(MI_Date,HUDImputedRate,3,1),IF($F36=0,W36*$E36,$F36)) ->  | Z36: =IF(AND(Net_Family_Assets_Total>VLOOKUP(MI_Date,HUDAssetThreshold,2,1),AND($E36="",$F36="")),X36*VLOOKUP(MI_Date,HUDImputedRate,3,1),IF($F36=0,X36*$E36,$F36)) -> 
B37: 2 | C37: Savings Acct | D37: 1000 | E37: 0.0005 | T37: =IF(AND($D$54>VLOOKUP($G$1,HUDAssetThreshold,2,1),AND(R37="",S37="")),Q37*VLOOKUP($G$1,HUDImputedRate,3,1),IF(S37=0,Q37*R37,S37)) ->  | W37: =IFERROR(IF(VLOOKUP($C37,Asset_Description_Type,2,0)="NNPP",$D37,0),0) -> 1000 | X37: =IFERROR(IF(VLOOKUP($C37,Asset_Description_Type,2,0)="RE",$D37,0),0) -> 0 | Y37: =IF(AND(NNPP_Total>VLOOKUP(MI_Date,HUDAssetThreshold,2,1),AND($E37="",$F37="")),W37*VLOOKUP(MI_Date,HUDImputedRate,3,1),IF($F37=0,W37*$E37,$F37)) ->  | Z37: =IF(AND(Net_Family_Assets_Total>VLOOKUP(MI_Date,HUDAssetThreshold,2,1),AND($E37="",$F37="")),X37*VLOOKUP(MI_Date,HUDImputedRate,3,1),IF($F37=0,X37*$E37,$F37)) -> 
G38: =IF(AND($D$54>50000,AND(E38="",F38="")),D38*0.4%,IF(F38=0,D38*E38,F38)) ->  | T38: =IF(AND($D$54>50000,AND(R38="",S38="")),Q38*0.4%,IF(S38=0,Q38*R38,S38)) -> 
C51: =IF('Page 3 Example'!D45>0,"Add'l from Pg 3","") -> Add'l from Pg 3 | D51: =IF(C51<>"",'Page 3 Example'!D45,"") -> 5000 | G51: =IF(C51<>"",'Page 3 Example'!G45,"") ->  | W51: =SUM(W34:W37) -> 11000 | X51: =SUM(X34:X37) -> 150000
B52: NNPP Total | D52: =IF(W51+'Page 3 Example'!W45>VLOOKUP(MI_Date,HUDAssetThreshold,2,1),'TIC Example'!W51+'Page 3 Example'!W45,0) -> 
B53: RE Total | D53: =X51+'Page 3 Example'!X45 -> 150000
B54: NET FAMILY ASSETS TOTAL | D54: =D52+D53 ->  | G54: =SUM(G34:G51) -> 
B55: TOTAL ANNUAL INCOME | G55: =G31+G54 -> 
B56: HUD Threshold | C56: =VLOOKUP($G$1,HUDAssetThreshold,2,1) -> 50000 | D56: HUD Passbook | E56: =VLOOKUP($G$1,HUDImputedRate,3,1) -> 0.004
A57: HOUSEHOLD CERTIFICATION & SIGNATURES
A58: The information on this form will be used to determine maximum income eligibility. I/we have provided for each person(s) set forth in Part II acceptable verification of current anticipated annual income. I/we agree to notify the landlord immediately upon any member of the household moving out of the unit or any new member moving in.
A59: Under penalties of perjury, I/we certify that the information presented in this Certification is true and accurate to the best of my/our knowledge and belief. The undersigned further understands that providing false representations herein constitutes an act of fraud. False, misleading or incomplete information may result in the termination of the lease agreement.
A61: __________________________________ | D61: ________ | E61: __________________________________ | H61: ________
A62: Signature | D62: Date | E62: Signature | H62: Date
A64: __________________________________ | D64: ________ | E64: __________________________________ | H64: ________
A65: Signature | D65: Date | E65: Signature | H65: Date
A68: PART V. DETERMINATION OF INCOME ELIGIBILITY
A69: TOTAL ANNUAL HOUSEHOLD INCOME FR4OM ALL SOURCES | F69: =G55 -> 
A71: Current Income Limit per Family Size: | D71: =SUM(G8:G15) -> 4 | F71: =VLOOKUP($G$1,IncomeLimit,D71+1)/0.5*ProjectSetAside ->  | G71: =ProjectSetAside -> 1
A72: Household Income Qualified | F72: =IF(F69<=F71,"Yes","No") -> 
A74: Tenant Paid Rent | F74: 800
A75: Utility Allowance | F75: 100
A76: Rental Assistance
A77: Other non-optional charges and mandatory fees
A78: Gross Rent | F78: =F74+F75+F77 -> 900
A80: Maximum Rent Limit | F80: =TRUNC(IF(NOT(ISBLANK($H$4)),MAX(VLOOKUP(MI_Date,RentLimit,$H$4+2),VLOOKUP(DateGrossRentFloor,RentLimit,$H$4+2)),"")/0.5*ProjectSetAside) ->  | G80: =IF(VLOOKUP(MI_Date,RentLimit,$H$4+2)<=VLOOKUP(DateGrossRentFloor,RentLimit,$H$4+2),"Rent Floor","") -> 
A81: Household Rent Qualified | F81: =IF(F78<=F80,"Yes","No") -> 
A83: Household Qualified to Move-in | F83: =IF(AND(F69<=F71,F78<=F80),"Qualified","Not Qualified") -> 
A86: SIGNATURE OF OWNER REPRESENTATIVE
A87: Based on the representations herein and upon the proofs and documentation required to be submitted, the individual(s) named in Part II of this Tenant Income Certification is/are eligible under the provisions of Act 15 or Act 18, as amended, and the Land Use Restriction Agreement (if applicable), to live in a unit in this Project.
A89: ___________________________________ | E89: ________________
A90: SIGNATURE OF OWNER REPRESENTATIVE | E90: DATE

Sheet Page 3 Example
A1: TIC-Additional Income / Asset Page
B3: Additional Income
B4: HH Mbr # | C4: Income Type | D4: Pay | E4: Period | F4: Hours | G4: Annual Amt | N4: =B4 -> HH Mbr # | O4: Income Type | P4: Pay | Q4: Period | R4: Hours | S4: Annual Amt
B5: 2 | C5: Employment | D5: 20 | E5: 52 | F5: 40 | G5: =IFERROR(IF(F5<>0,+D5*F5*E5,+D5*E5),0) -> 41600 | Q5: =IF(P5<>"",IF(O5<>"",VLOOKUP(O5,Income_Defaults,2,0),DefaultPeriod),"") ->  | R5: =IF(Q5=52,40,0) -> 0 | S5: =IFERROR(IF(R5<>0,+P5*R5*Q5,+P5*Q5),0) -> 0
G6: =IFERROR(IF(F6<>0,+D6*F6*E6,+D6*E6),0) -> 0 | R6: =IF(Q6=52,40,0) -> 0 | S6: =IFERROR(IF(R6<>0,+P6*R6*Q6,+P6*Q6),0) -> 0
G7: 0 | R7: 0 | S7: 0
G8: 0 | R8: 0 | S8: 0
G9: 0 | R9: 0 | S9: 0
G10: 0 | R10: 0 | S10: 0
G11: 0 | R11: 0 | S11: 0
G12: 0 | R12: 0 | S12: 0
G13: 0 | R13: 0 | S13: 0
G14: 0 | R14: 0 | S14: 0
G15: 0 | R15: 0 | S15: 0
G16: 0 | R16: 0 | S16: 0
G17: 0 | R17: 0 | S17: 0
G18: 0 | R18: 0 | S18: 0
G19: 0 | R19: 0 | S19: 0
G20: 0 | R20: 0 | S20: 0
G21: 0 | R21: 0 | S21: 0
B22: TOTALS | G22: =SUM(G5:G21) -> 41600 | N22: TOTALS | S22: =SUM(S5:S21) -> 0
B24: Additional Assets | N24: Additional Assets
B25: =B4 -> HH Mbr # | C25: Asset Type | D25: Cash Value | E25: Int. rate | F25: or Actual $ | G25: Income | N25: =N4 -> HH Mbr # | O25: Asset Type | P25: Cash Value | Q25: Int. rate | R25: or Actual $ | S25: Income | W25: NNPP Bal | X25: RE Bal | Y25: NNPP Inc. | Z25: RE Inc.
B26: 2 | C26: Savings Acct | D26: 5000 | E26: 0.03 | G26: =SUM(Y26:Z26) ->  | S26: =IF(AND(#REF!>VLOOKUP(#REF!,HUDAssetThreshold,2,1),AND(Q26="",R26="")),P26*0.4%,IF(R26=0,P26*Q26,R26)) ->  | W26: =IFERROR(IF(VLOOKUP($C26,Asset_Description_Type,2,0)="NNPP",$D26,0),0) -> 5000 | X26: =IFERROR(IF(VLOOKUP($C26,Asset_Description_Type,2,0)="RE",$D26,0),0) -> 0 | Y26: =IF(AND(NNPP_Total>VLOOKUP(MI_Date,HUDAssetThreshold,2,1),AND($E26="",$F26="")),W26*VLOOKUP(MI_Date,HUDImputedRate,3,1),IF($F26=0,W26*$E26,$F26)) ->  | Z26: =IF(AND(Net_Family_Assets_Total>VLOOKUP(MI_Date,HUDAssetThreshold,2,1),AND($E26="",$F26="")),X26*VLOOKUP(MI_Date,HUDImputedRate,3,1),IF($F26=0,X26*$E26,$F26)) -> 
G27: =SUM(Y27:Z27) ->  | S27: =IF(AND(#REF!>VLOOKUP(#REF!,HUDAssetThreshold,2,1),AND(Q27="",R27="")),P27*0.4%,IF(R27=0,P27*Q27,R27)) ->  | W27: 0 | X27: 0
G28: =SUM(Y28:Z28) ->  | S28: =IF(AND(#REF!>VLOOKUP(#REF!,HUDAssetThreshold,2,1),AND(Q28="",R28="")),P28*0.4%,IF(R28=0,P28*Q28,R28)) ->  | W28: 0 | X28: 0
S29: =IF(AND(#REF!>VLOOKUP(#REF!,HUDAssetThreshold,2,1),AND(Q29="",R29="")),P29*0.4%,IF(R29=0,P29*Q29,R29)) ->  | W29: 0 | X29: 0
S30: =IF(AND(#REF!>VLOOKUP(#REF!,HUDAssetThreshold,2,1),AND(Q30="",R30="")),P30*0.4%,IF(R30=0,P30*Q30,R30)) ->  | W30: 0 | X30: 0
S31: =IF(AND(#REF!>VLOOKUP(#REF!,HUDAssetThreshold,2,1),AND(Q31="",R31="")),P31*0.4%,IF(R31=0,P31*Q31,R31)) ->  | W31: 0 | X31: 0
S32: =IF(AND(#REF!>VLOOKUP(#REF!,HUDAssetThreshold,2,1),AND(Q32="",R32="")),P32*0.4%,IF(R32=0,P32*Q32,R32)) ->  | W32: 0 | X32: 0
S33: =IF(AND(#REF!>VLOOKUP(#REF!,HUDAssetThreshold,2,1),AND(Q33="",R33="")),P33*0.4%,IF(R33=0,P33*Q33,R33)) ->  | W33: 0 | X33: 0
S34: =IF(AND(#REF!>VLOOKUP(#REF!,HUDAssetThreshold,2,1),AND(Q34="",R34="")),P34*0.4%,IF(R34=0,P34*Q34,R34)) ->  | W34: 0 | X34: 0
S35: =IF(AND(#REF!>VLOOKUP(#REF!,HUDAssetThreshold,2,1),AND(Q35="",R35="")),P35*0.4%,IF(R35=0,P35*Q35,R35)) ->  | W35: 0 | X35: 0
S36: =IF(AND(#REF!>VLOOKUP(#REF!,HUDAssetThreshold,2,1),AND(Q36="",R36="")),P36*0.4%,IF(R36=0,P36*Q36,R36)) ->  | W36: 0 | X36: 0
S37: =IF(AND(#REF!>VLOOKUP(#REF!,HUDAssetThreshold,2,1),AND(Q37="",R37="")),P37*0.4%,IF(R37=0,P37*Q37,R37)) ->  | W37: 0 | X37: 0
S38: =IF(AND(#REF!>VLOOKUP(#REF!,HUDAssetThreshold,2,1),AND(Q38="",R38="")),P38*0.4%,IF(R38=0,P38*Q38,R38)) ->  | W38: 0 | X38: 0
S39: =IF(AND(#REF!>VLOOKUP(#REF!,HUDAssetThreshold,2,1),AND(Q39="",R39="")),P39*0.4%,IF(R39=0,P39*Q39,R39)) ->  | W39: 0 | X39: 0
S40: =IF(AND(#REF!>VLOOKUP(#REF!,HUDAssetThreshold,2,1),AND(Q40="",R40="")),P40*0.4%,IF(R40=0,P40*Q40,R40)) ->  | W40: 0 | X40: 0
S41: =IF(AND(#REF!>VLOOKUP(#REF!,HUDAssetThreshold,2,1),AND(Q41="",R41="")),P41*0.4%,IF(R41=0,P41*Q41,R41)) ->  | W41: 0 | X41: 0
S42: =IF(AND(#REF!>VLOOKUP(#REF!,HUDAssetThreshold,2,1),AND(Q42="",R42="")),P42*0.4%,IF(R42=0,P42*Q42,R42)) ->  | W42: 0 | X42: 0
S43: =IF(AND(#REF!>VLOOKUP(#REF!,HUDAssetThreshold,2,1),AND(Q43="",R43="")),P43*0.4%,IF(R43=0,P43*Q43,R43)) ->  | W43: 0 | X43: 0
G44: =SUM(Y44:Z44) ->  | S44: =IF(AND(#REF!>VLOOKUP(#REF!,HUDAssetThreshold,2,1),AND(Q44="",R44="")),P44*0.4%,IF(R44=0,P44*Q44,R44)) ->  | W44: 0 | X44: 0
B45: ASSETS TOTAL | D45: =SUM(D26:D44) -> 5000 | G45: =SUM(G26:G44) ->  | N45: ASSETS TOTAL | P45: =SUM(P26:P44) -> 0 | S45: =SUM(S26:S44) ->  | W45: =SUM(W26:W44) -> 5000 | X45: =SUM(X26:X44) -> 0

Sheet EnterCounty&Defaults
A1: Project Information
P2: =IF(J2="Word Macro","**PARAGRAPH","") -> 
A5: Dt Award Ltr | C5: Enter Date of Award Letter to establish Rent Floor.
A6: Dt Loan Closed | C6: Enter Date Placed-in-Service Date for Program
A7: HERA Project | B7: N | C7: Enter Y if project uses the HERA Limit | G7: =IF(PISD>DATE(2008,12,31),"NOT HERA!","") -> 
A8: Project Name | AA8: Eligible Basis: | AB8: Garage | AC8: Cable | AD8: Washer/Dryer
A9: Address | AB9: N | AC9: N | AD9: N | AH9: Default | AI9: 52 | AJ9: Enter default period for calculation of income
A10: Set Aside % | B10: 1 | C10: Enter Set Aside for project (100%) | AK10: Usually 12 months or 52 weeks
A11: County | C11: Enter county
A22: =CONCATENATE(CountyName," County 50% Table") -> County 50% Table
B23: 0.7 | C23: 0.8 | D23: 0.9 | F23: 1.08 | G23: 1.16 | H23: 1.24 | I23: 1.32 | J23: 1.4
B24: 1 | C24: 2 | D24: 3 | E24: 4 | F24: 5 | G24: 6 | H24: 7 | I24: 8 | J24: 9 | K24: Hold Harmless
A25: 1987-01-01 | B25: =INT(ROUND($E25*B$23/50,0)*50) ->  | E25: =IF(ISNA(HLOOKUP(CountyName,CountyData,ROW($A25)-23,FALSE))=FALSE,HLOOKUP(CountyName,CountyData,ROW(A25)-23,FALSE),HLOOKUP("Counties",CountyName,ROW($A25)-23,FALSE)) ->  | F25: =INT(ROUND($E25*F$23/50,0)*50) -> 
A26: 1991-05-01 | K26: =IF(A26>PISD,1,0) -> 1
A27: 1992-04-16 | K27: 1
A28: 1993-05-05 | K28: 1
A29: 1994-05-31 | K29: 1
A30: 1995-01-18 | K30: 1
A31: 1995-12-07 | K31: 1
A32: 1996-12-27 | K32: 1
A33: 1998-01-07 | K33: 1
A34: 1999-01-27 | K34: 1
A35: 2000-03-09 | K35: 1
A36: 2001-04-06 | K36: 1
A37: 2002-01-31 | E37: =IF(ISNA(HLOOKUP(CountyName,CountyData,ROW($A37)-23,FALSE))=FALSE,HLOOKUP(CountyName,CountyData,ROW(A37)-23,FALSE),HLOOKUP("Counties",CountyName,ROW($A37)-23,FALSE)) ->  | K37: 1
A38: 2003-02-20 | K38: 1
A39: 2004-01-28 | K39: 1
A40: 2005-02-11 | K40: 1
A41: 2006-03-08 | K41: 1
A42: 2007-03-20 | K42: 1
A43: 2008-02-13 | C43: =INT(ROUND($E43*C$23/50,0)*50) ->  | D43: =INT(ROUND($E43*D$23/50,0)*50) ->  | E43: =IF(ISNA(HLOOKUP(CountyName,CountyData,ROW($A43)-23,FALSE))=FALSE,HLOOKUP(CountyName,CountyData,ROW(A43)-23,FALSE),HLOOKUP("Counties",CountyName,ROW($A43)-23,FALSE)) ->  | K43: 1
A44: 2009-03-19 | C44: =INT(ROUND($E44*C$23/50,0)*50) ->  | D44: =INT(ROUND($E44*D$23/50,0)*50) ->  | E44: =IF(_xlfn.SINGLE(HERA)="Y",HLOOKUP(CountyName,HERAData,ROW(A44)-23,FALSE),IF(AND(K44=1,HLOOKUP(CountyName,CountyData,ROW(A44)-23,FALSE)<E43),E43,HLOOKUP(CountyName,CountyData,ROW(A44)-23,FALSE))) ->  | K44: 1
A45: 2010-05-14 | B45: =INT(CEILING($E45*B$23/50,1)*50) ->  | C45: =INT(CEILING($E45*C$23/50,1)*50) ->  | F45: =INT(CEILING($E45*F$23/50,1)*50) ->  | K45: 1
A46: 2011-05-31 | B46: =INT(CEILING($E46*B$23/50,1)*50) ->  | K46: 1
A47: 2011-12-01 | K47: 1
A48: 2012-12-04 | K48: 1
A49: 2013-12-18 | K49: 1
A50: 2015-03-06 | E50: =IF(_xlfn.SINGLE(HERA)="Y",HLOOKUP(CountyName,HERAData,ROW(A50)-23,FALSE),IF(AND(K50=1,HLOOKUP(CountyName,CountyData,ROW(A50)-23,FALSE)<E49),E49,HLOOKUP(CountyName,CountyData,ROW(A50)-23,FALSE))) ->  | K50: =IF(A50>PISD,1,0) -> 1
A51: 2016-03-28 | E51: =IF(_xlfn.SINGLE(HERA)="Y",HLOOKUP(CountyName,HERAData,ROW(A51)-23,FALSE),IF(AND(K51=1,HLOOKUP(CountyName,CountyData,ROW(A51)-23,FALSE)<E50),E50,HLOOKUP(CountyName,CountyData,ROW(A51)-23,FALSE))) ->  | K51: =IF(A51>PISD,1,0) -> 1
A52: 2017-04-14 | E52: =IF(_xlfn.SINGLE(HERA)="Y",HLOOKUP(CountyName,HERAData,ROW(A52)-23,FALSE),IF(AND(K52=1,HLOOKUP(CountyName,CountyData,ROW(A52)-23,FALSE)<E51),E51,HLOOKUP(CountyName,CountyData,ROW(A52)-23,FALSE))) ->  | K52: =IF(A52>PISD,1,0) -> 1
A53: 2018-04-01 | E53: =IF(_xlfn.SINGLE(HERA)="Y",HLOOKUP(CountyName,HERAData,ROW(A53)-23,FALSE),IF(AND(K53=1,HLOOKUP(CountyName,CountyData,ROW(A53)-23,FALSE)<E52),E52,HLOOKUP(CountyName,CountyData,ROW(A53)-23,FALSE))) ->  | K53: =IF(A53>PISD,1,0) -> 1
A54: 2019-04-24 | E54: =IF(_xlfn.SINGLE(HERA)="Y",HLOOKUP(CountyName,HERAData,ROW(A54)-23,FALSE),IF(AND(K54=1,HLOOKUP(CountyName,CountyData,ROW(A54)-23,FALSE)<E53),E53,HLOOKUP(CountyName,CountyData,ROW(A54)-23,FALSE))) ->  | K54: =IF(A54>PISD,1,0) -> 1
A55: 2020-04-01 | E55: =IF(_xlfn.SINGLE(HERA)="Y",HLOOKUP(CountyName,HERAData,ROW(A55)-23,FALSE),IF(AND(K55=1,HLOOKUP(CountyName,CountyData,ROW(A55)-23,FALSE)<E54),E54,HLOOKUP(CountyName,CountyData,ROW(A55)-23,FALSE))) ->  | K55: =IF(A55>PISD,1,0) -> 1
A56: 2021-04-01 | K56: 1
A57: 2022-04-18 | E57: =IF(_xlfn.SINGLE(HERA)="Y",HLOOKUP(CountyName,HERAData,ROW(A57)-23,FALSE),IF(AND(K57=1,HLOOKUP(CountyName,CountyData,ROW(A57)-23,FALSE)<E56),E56,HLOOKUP(CountyName,CountyData,ROW(A57)-23,FALSE))) ->  | K57: =IF(A57>PISD,1,0) -> 1
A58: 2023-05-15 | E58: =IF(_xlfn.SINGLE(HERA)="Y",HLOOKUP(CountyName,HERAData,ROW(A58)-23,FALSE),IF(AND(K58=1,HLOOKUP(CountyName,CountyData,ROW(A58)-23,FALSE)<E57),E57,HLOOKUP(CountyName,CountyData,ROW(A58)-23,FALSE))) ->  | K58: =IF(A58>PISD,1,0) -> 1
A59: 2024-04-01 | E59: =IF(_xlfn.SINGLE(HERA)="Y",HLOOKUP(CountyName,HERAData,ROW(A59)-23,FALSE),IF(AND(K59=1,HLOOKUP(CountyName,CountyData,ROW(A59)-23,FALSE)<E58),E58,HLOOKUP(CountyName,CountyData,ROW(A59)-23,FALSE))) ->  | K59: =IF(A59>PISD,1,0) -> 1
A60: 2025-04-01 | E60: =IF(_xlfn.SINGLE(HERA)="Y",HLOOKUP(CountyName,HERAData,ROW(A60)-23,FALSE),IF(AND(K60=1,HLOOKUP(CountyName,CountyData,ROW(A60)-23,FALSE)<E59),E59,HLOOKUP(CountyName,CountyData,ROW(A60)-23,FALSE))) ->  | K60: =IF(A60>PISD,1,0) -> 1
A61: 2026-05-01 | D61: =INT(CEILING($E61*D$23/50,1)*50) ->  | E61: =IF(_xlfn.SINGLE(HERA)="Y",HLOOKUP(CountyName,HERAData,ROW(A61)-23,FALSE),IF(AND(K61=1,HLOOKUP(CountyName,CountyData,ROW(A61)-23,FALSE)<E60),E60,HLOOKUP(CountyName,CountyData,ROW(A61)-23,FALSE))) ->  | K61: =IF(A61>PISD,1,0) -> 1
A64: Bedroom | B64: Eff | C64: 1 | D64: 2 | E64: 3 | F64: 4 | G64: 5 | H64: 6
A65: =A25 -> 1987-01-01 | B65: =(B25*0.3/12) ->  | C65: =((B25+C25)/2/12*0.3) ->  | D65: =(D25*0.3/12) ->  | E65: =((E25+F25)/2/12*0.3) ->  | F65: =(G25*0.3/12) ->  | G65: =((H25+I25)/2/12*0.3) ->  | H65: =(J25*0.3/12) -> 
A66: 1991-05-01
A67: 1992-04-16
A68: 1993-05-05
A69: 1994-05-31
A70: 1995-01-18
A71: 1995-12-07
A72: 1996-12-27
A73: 1998-01-07
A74: 1999-01-27
A75: 2000-03-09
A76: 2001-04-06
A77: 2002-01-31
A78: 2003-02-20
A79: 2004-01-28
A80: 2005-02-11
A81: 2006-03-08
A82: 2007-03-20
A83: 2008-02-13
A84: 2009-03-19
A85: 2010-05-14
A86: 2011-05-31
A87: 2011-12-01
A88: 2012-12-04
A89: 2013-12-18
A90: 2015-03-06
A91: 2016-03-28
A92: 2017-04-14
A93: 2018-04-01
A94: 2019-04-24
A95: 2020-04-01
A96: 2021-04-01
A97: 2022-04-18
A98: 2023-05-15
A99: 2024-04-01
A100: 2025-04-01 | C100: =((B60+C60)/2/12*0.3) ->  | E100: =((E60+F60)/2/12*0.3) ->  | F100: =(G60*0.3/12) ->  | G100: =((H60+I60)/2/12*0.3) ->  | H100: =(J60*0.3/12) -> 
A101: =A61 -> 2026-05-01 | B101: =(B61*0.3/12) ->  | C101: =((B61+C61)/2/12*0.3) ->  | E101: =((E61+F61)/2/12*0.3) ->  | F101: =(G61*0.3/12) ->  | G101: =((H61+I61)/2/12*0.3) ->  | H101: =(J61*0.3/12) -> 
BV118: Automatic County Input | BX118: SA | BY118: =VLOOKUP(Project,ProjectInfo,5,0) -> 
B119: ADAMS | C119: ASHLAND | D119: BARRON | E119: BAYFIELD | F119: BROWN | G119: BUFFALO | H119: BURNETT | I119: CALUMET | J119: CHIPPEWA | K119: CLARK | L119: COLUMBIA | M119: CRAWFORD | N119: DANE | O119: DODGE | P119: DOOR | Q119: DOUGLAS | R119: DUNN | S119: EAU CLAIRE | T119: FLORENCE | U119: FOND DU LAC | V119: FOREST | W119: GRANT | X119: GREEN | Y119: GREEN LAKE | Z119: IOWA | AA119: IRON | AB119: JACKSON | AC119: JEFFERSON | AD119: JUNEAU | AE119: KENOSHA | AF119: KEWAUNEE | AG119: LA CROSSE | AH119: LAFAYETTE | AI119: LANGLADE | AJ119: LINCOLN | AK119: MANITOWOC | AL119: MARATHON | AM119: MARINETTE | AN119: MARQUETTE | AO119: MENOMINEE | AP119: MILWAUKEE | AQ119: MONROE | AR119: OCONTO | AS119: ONEIDA | AT119: OUTAGAMIE | AU119: OZAUKEE | AV119: PEPIN | AW119: PIERCE | AX119: POLK | AY119: PORTAGE | AZ119: PRICE | BA119: RACINE | BB119: RICHLAND | BC119: ROCK | BD119: RUSK | BE119: SAUK | BF119: SAWYER | BG119: SHAWANO | BH119: SHEBOYGAN | BI119: ST. CROIX | BJ119: TAYLOR | BK119: TREMPEALEAU | BL119: VERNON | BM119: VILAS | BN119: WALWORTH | BO119: WASHBURN | BP119: WASHINGTON | BQ119: WAUKESHA | BR119: WAUPACA | BS119: WAUSHARA | BT119: WINNEBAGO | BU119: WOOD | BV119: =VLOOKUP(Project,ProjectInfo,3,0) ->  | BY119: =RIGHT(BY118,2)*0.01 -> 

Sheet TIC
A1: TENANT INCOME CERTIFICATION AFFIDAVIT | F1: Move-In Date | N1: TENANT INCOME CERTIFICATION AFFIDAVIT | S1: Move-In Date
A2: PART I. DEVELOPMENT DATA | N2: PART I. DEVELOPMENT DATA
A3: Property: | B3: =ProjectName -> 0 | E3: County: | F3: =CountyName -> 0 | N3: Property: | O3: =ProjectName -> 0 | R3: County: | S3: =CountyName -> 0
A4: Address: | B4: =PropertyAddress -> 0 | E4: Unit No. | G4: #Bedrooms: | N4: Address: | O4: =PropertyAddress -> 0 | R4: Unit No. | T4: #Bedrooms:
A6: PART II. HOUSEHOLD COMPOSITION | N6: PART II. HOUSEHOLD COMPOSITION
A7: HH Mbr # | B7: Last Name | C7: First Name / Initial | D7: Relationship to Head of Household | F7: Date of Birth | N7: HH Mbr # | O7: Last Name | P7: First Name / Initial | Q7: Relationship to Head of Household | S7: Date of Birth
A8: 1 | G8: =IF(AND(B8<>"",D8<>"Live-in caretaker"),1,"") ->  | N8: 1 | T8: =IF(AND(O8<>"",Q8<>"Live-in caretaker"),1,"") -> 
A9: 2 | G9: =IF(AND(B9<>"",D9<>"Live-in caretaker"),1,"") ->  | N9: 2 | T9: =IF(AND(O9<>"",Q9<>"Live-in caretaker"),1,"") -> 
A10: 3 | N10: 3
A11: 4 | N11: 4
A12: 5 | N12: 5
A13: 6 | N13: 6
A14: 7 | N14: 7
A15: 8 | N15: 8
A16: PART III. GROSS ANNUAL INCOME | N16: PART III. GROSS ANNUAL INCOME
C17: (A) | D17: (B) | P17: (A) | Q17: (B)
B18: =A7 -> HH Mbr # | C18: Income Type | D18: Pay | E18: Period | F18: Hours | G18: Annual Amt | O18: =N7 -> HH Mbr # | P18: Income Type | Q18: Pay | R18: Period | S18: Hours | T18: Annual Amt
G19: =IFERROR(IF(F19<>0,+D19*F19*E19,+D19*E19),0) -> 0 | R19: =IF(Q19<>"",IF(P19<>"",VLOOKUP(P19,Income_Defaults,2,0),DefaultPeriod),"") ->  | S19: =IF(R19=52,40,0) -> 0 | T19: =IFERROR(IF(S19<>0,+Q19*S19*R19,+Q19*R19),0) -> 0
G20: =IFERROR(IF(F20<>0,+D20*F20*E20,+D20*E20),0) -> 0 | R20: =IF(Q20<>"",IF(P20<>"",VLOOKUP(P20,Income_Defaults,2,0),DefaultPeriod),"") ->  | S20: =IF(R20=52,40,0) -> 0 | T20: =IFERROR(IF(S20<>0,+Q20*S20*R20,+Q20*R20),0) -> 0
G21: 0 | R21: =IF(Q21<>"",IF(P21<>"",VLOOKUP(P21,Income_Defaults,2,0),DefaultPeriod),"") ->  | S21: 0 | T21: 0
G22: 0 | R22: =IF(Q22<>"",IF(P22<>"",VLOOKUP(P22,Income_Defaults,2,0),DefaultPeriod),"") ->  | S22: 0 | T22: 0
F23: =IF(E23=52,40,0) -> 0 | G23: 0 | S23: 0 | T23: 0
F24: 0 | G24: 0 | S24: 0 | T24: 0
F25: 0 | G25: 0 | S25: 0 | T25: 0
F26: 0 | G26: 0 | S26: 0 | T26: 0
F27: 0 | G27: 0 | S27: 0 | T27: 0
F28: 0 | G28: 0 | S28: 0 | T28: 0
F29: 0 | G29: 0 | S29: 0 | T29: 0
C30: =IF('Page 3'!G22>0,"Additional from Page 3","") ->  | G30: =IF(C30<>"",'Page 3'!G22,"") ->  | P30: =IF(#REF!>0,"Additional from Page 3","") ->  | T30: =IF(P30<>"",#REF!,"") -> 
B31: TOTALS | G31: =SUM(G19:G30) -> 0 | O31: TOTALS | T31: =SUM(T19:T30) -> 
A32: PART IV. INCOME FROM ASSETS | N32: PART IV. INCOME FROM ASSETS
B33: =A7 -> HH Mbr # | C33: Asset Type | D33: Cash Value | E33: Int. rate | F33: or Actual $ | G33: Income | O33: =N7 -> HH Mbr # | P33: Asset Type | Q33: Cash Value | R33: Int. rate | S33: or Actual $ | T33: Income | W33: NNPP Bal | X33: RE Bal | Y33: NNPP Inc. | Z33: RE Inc.
G34: =IFERROR(SUM(Y34:Z34),0) -> 0 | T34: =IF(AND($D$54>VLOOKUP($G$1,HUDAssetThreshold,2,1),AND(R34="",S34="")),Q34*VLOOKUP($G$1,HUDImputedRate,3,1),IF(S34=0,Q34*R34,S34)) ->  | W34: =IFERROR(IF(VLOOKUP($C34,Asset_Description_Type,2,0)="NNPP",$D34,0),0) -> 0 | X34: =IFERROR(IF(VLOOKUP($C34,Asset_Description_Type,2,0)="RE",$D34,0),0) -> 0 | Y34: =IF(AND(NNPP_Total>VLOOKUP(MI_Date,HUDAssetThreshold,2,1),AND($E34="",$F34="")),W34*VLOOKUP(MI_Date,HUDImputedRate,3,1),IF($F34=0,W34*$E34,$F34)) ->  | Z34: =IF(AND(Net_Family_Assets_Total>VLOOKUP(MI_Date,HUDAssetThreshold,2,1),AND($E34="",$F34="")),X34*VLOOKUP(MI_Date,HUDImputedRate,3,1),IF($F34=0,X34*$E34,$F34)) -> 
G35: =IFERROR(SUM(Y35:Z35),0) -> 0 | T35: =IF(AND($D$54>VLOOKUP($G$1,HUDAssetThreshold,2,1),AND(R35="",S35="")),Q35*VLOOKUP($G$1,HUDImputedRate,3,1),IF(S35=0,Q35*R35,S35)) ->  | W35: =IFERROR(IF(VLOOKUP($C35,Asset_Description_Type,2,0)="NNPP",$D35,0),0) -> 0 | X35: =IFERROR(IF(VLOOKUP($C35,Asset_Description_Type,2,0)="RE",$D35,0),0) -> 0 | Y35: =IF(AND(NNPP_Total>VLOOKUP(MI_Date,HUDAssetThreshold,2,1),AND($E35="",$F35="")),W35*VLOOKUP(MI_Date,HUDImputedRate,3,1),IF($F35=0,W35*$E35,$F35)) ->  | Z35: =IF(AND(Net_Family_Assets_Total>VLOOKUP(MI_Date,HUDAssetThreshold,2,1),AND($E35="",$F35="")),X35*VLOOKUP(MI_Date,HUDImputedRate,3,1),IF($F35=0,X35*$E35,$F35)) -> 
G36: =IFERROR(SUM(Y36:Z36),0) -> 0 | T36: =IF(AND($D$54>VLOOKUP($G$1,HUDAssetThreshold,2,1),AND(R36="",S36="")),Q36*VLOOKUP($G$1,HUDImputedRate,3,1),IF(S36=0,Q36*R36,S36)) ->  | W36: =IFERROR(IF(VLOOKUP($C36,Asset_Description_Type,2,0)="NNPP",$D36,0),0) -> 0 | X36: =IFERROR(IF(VLOOKUP($C36,Asset_Description_Type,2,0)="RE",$D36,0),0) -> 0 | Y36: =IF(AND(NNPP_Total>VLOOKUP(MI_Date,HUDAssetThreshold,2,1),AND($E36="",$F36="")),W36*VLOOKUP(MI_Date,HUDImputedRate,3,1),IF($F36=0,W36*$E36,$F36)) ->  | Z36: =IF(AND(Net_Family_Assets_Total>VLOOKUP(MI_Date,HUDAssetThreshold,2,1),AND($E36="",$F36="")),X36*VLOOKUP(MI_Date,HUDImputedRate,3,1),IF($F36=0,X36*$E36,$F36)) -> 
G37: 0 | T37: =IF(AND($D$54>VLOOKUP($G$1,HUDAssetThreshold,2,1),AND(R37="",S37="")),Q37*VLOOKUP($G$1,HUDImputedRate,3,1),IF(S37=0,Q37*R37,S37)) ->  | W37: =IFERROR(IF(VLOOKUP($C37,Asset_Description_Type,2,0)="NNPP",$D37,0),0) -> 0 | X37: =IFERROR(IF(VLOOKUP($C37,Asset_Description_Type,2,0)="RE",$D37,0),0) -> 0 | Y37: =IF(AND(NNPP_Total>VLOOKUP(MI_Date,HUDAssetThreshold,2,1),AND($E37="",$F37="")),W37*VLOOKUP(MI_Date,HUDImputedRate,3,1),IF($F37=0,W37*$E37,$F37)) ->  | Z37: =IF(AND(Net_Family_Assets_Total>VLOOKUP(MI_Date,HUDAssetThreshold,2,1),AND($E37="",$F37="")),X37*VLOOKUP(MI_Date,HUDImputedRate,3,1),IF($F37=0,X37*$E37,$F37)) -> 
G38: =IF(AND($D$54>50000,AND(E38="",F38="")),D38*0.4%,IF(F38=0,D38*E38,F38)) -> 0 | T38: =IF(AND($D$54>50000,AND(R38="",S38="")),Q38*0.4%,IF(S38=0,Q38*R38,S38)) -> 0
G39: 0 | T39: 0
G40: 0 | T40: 0
G41: 0 | T41: 0
G42: 0 | T42: 0
G43: 0 | T43: 0
G44: 0 | T44: 0
G45: 0 | T45: 0
G46: 0 | T46: 0
G47: 0 | T47: 0
G48: 0 | T48: 0
G49: 0 | T49: 0
G50: 0 | T50: 0
C51: =IF('Page 3'!D45>0,"Add'l from Pg 3","") ->  | D51: =IF(C51<>"",'Page 3'!D45,"") ->  | G51: =IF(C51<>"",'Page 3'!G45,"") ->  | W51: =SUM(W34:W37) -> 0 | X51: =SUM(X34:X37) -> 0
B52: NNPP Total | D52: =IFERROR(IF(W51+'Page 3'!W45>VLOOKUP(MI_Date,HUDAssetThreshold,2,1),TIC!W51+'Page 3'!W45,0),0) -> 0
B53: RE Total | D53: =X51+'Page 3'!X45 -> 0
B54: NET FAMILY ASSETS TOTAL | D54: =D52+D53 -> 0 | G54: =SUM(G34:G51) -> 0
B55: TOTAL ANNUAL INCOME | G55: =G31+G54 -> 0
B56: HUD Threshold | C56: =VLOOKUP($G$1,HUDAssetThreshold,2,1) ->  | D56: HUD Passbook | E56: =VLOOKUP($G$1,HUDImputedRate,3,1) -> 
A57: HOUSEHOLD CERTIFICATION & SIGNATURES
A58: The information on this form will be used to determine maximum income eligibility. I/we have provided for each person(s) set forth in Part II acceptable verification of current anticipated annual income. I/we agree to notify the landlord immediately upon any member of the household moving out of the unit or any new member moving in.
A59: Under penalties of perjury, I/we certify that the information presented in this Certification is true and accurate to the best of my/our knowledge and belief. The undersigned further understands that providing false representations herein constitutes an act of fraud. False, misleading or incomplete information may result in the termination of the lease agreement.
A61: __________________________________ | D61: ________ | E61: __________________________________ | H61: ________
A62: Signature | D62: Date | E62: Signature | H62: Date
A64: __________________________________ | D64: ________ | E64: __________________________________ | H64: ________
A65: Signature | D65: Date | E65: Signature | H65: Date
A68: PART V. DETERMINATION OF INCOME ELIGIBILITY
A69: TOTAL ANNUAL HOUSEHOLD INCOME FR4OM ALL SOURCES | F69: =G55 -> 0
A71: Current Income Limit per Family Size: | D71: =SUM(G8:G15) -> 0 | F71: =VLOOKUP($G$1,IncomeLimit,D71+1)/0.5*ProjectSetAside ->  | G71: =ProjectSetAside -> 1
A72: Household Income Qualified | F72: =IF(F69<=F71,"Yes","No") -> 
A74: Tenant Paid Rent
A75: Utility Allowance
A76: Rental Assistance
A77: Other non-optional charges and mandatory fees
A78: Gross Rent | F78: =F74+F75+F77 -> 0
A80: Maximum Rent Limit | F80: =TRUNC(IF(NOT(ISBLANK($H$4)),MAX(VLOOKUP(MI_Date,RentLimit,$H$4+2),VLOOKUP(DateGrossRentFloor,RentLimit,$H$4+2)),"")/0.5*ProjectSetAside) ->  | G80: =IF(VLOOKUP(MI_Date,RentLimit,$H$4+2)<=VLOOKUP(DateGrossRentFloor,RentLimit,$H$4+2),"Rent Floor","") -> 
A81: Household Rent Qualified | F81: =IF(F78<=F80,"Yes","No") -> 
A83: Household Qualified to Move-in | F83: =IF(AND(F69<=F71,F78<=F80),"Qualified","Not Qualified") -> 
A86: SIGNATURE OF OWNER REPRESENTATIVE
A87: Based on the representations herein and upon the proofs and documentation required to be submitted, the individual(s) named in Part II of this Tenant Income Certification is/are eligible under the provisions of Act 15 or Act 18, as amended, and the Land Use Restriction Agreement (if applicable), to live in a unit in this Project.
A89: ___________________________________ | E89: ________________
A90: SIGNATURE OF OWNER REPRESENTATIVE | E90: DATE
D92: WHEDA Restore Main St/Vacancy to Vitality Form 300

Sheet Page 3
A1: TIC-Additional Income / Asset Page
B3: Additional Income
B4: HH Mbr # | C4: Income Type | D4: Pay | E4: Period | F4: Hours | G4: Annual Amt | N4: =B4 -> HH Mbr # | O4: Income Type | P4: Pay | Q4: Period | R4: Hours | S4: Annual Amt
G5: =IFERROR(IF(F5<>0,+D5*F5*E5,+D5*E5),0) -> 0 | Q5: =IF(P5<>"",IF(O5<>"",VLOOKUP(O5,Income_Defaults,2,0),DefaultPeriod),"") ->  | R5: =IF(Q5=52,40,0) -> 0 | S5: =IFERROR(IF(R5<>0,+P5*R5*Q5,+P5*Q5),0) -> 0
G6: =IFERROR(IF(F6<>0,+D6*F6*E6,+D6*E6),0) -> 0 | R6: =IF(Q6=52,40,0) -> 0 | S6: =IFERROR(IF(R6<>0,+P6*R6*Q6,+P6*Q6),0) -> 0
G7: 0 | R7: 0 | S7: 0
G8: 0 | R8: 0 | S8: 0
G9: 0 | R9: 0 | S9: 0
G10: 0 | R10: 0 | S10: 0
G11: 0 | R11: 0 | S11: 0
G12: 0 | R12: 0 | S12: 0
G13: 0 | R13: 0 | S13: 0
G14: 0 | R14: 0 | S14: 0
G15: 0 | R15: 0 | S15: 0
G16: 0 | R16: 0 | S16: 0
G17: 0 | R17: 0 | S17: 0
G18: 0 | R18: 0 | S18: 0
G19: 0 | R19: 0 | S19: 0
G20: 0 | R20: 0 | S20: 0
G21: 0 | R21: 0 | S21: 0
B22: TOTALS | G22: =SUM(G5:G21) -> 0 | N22: TOTALS | S22: =SUM(S5:S21) -> 0
B24: Additional Assets | N24: Additional Assets
B25: =B4 -> HH Mbr # | C25: Asset Type | D25: Cash Value | E25: Int. rate | F25: or Actual $ | G25: Income | N25: =N4 -> HH Mbr # | O25: Asset Type | P25: Cash Value | Q25: Int. rate | R25: or Actual $ | S25: Income | W25: NNPP Bal | X25: RE Bal | Y25: NNPP Inc. | Z25: RE Inc.
G26: =IFERROR(SUM(Y26:Z26),0) -> 0 | S26: =IF(AND(#REF!>VLOOKUP(#REF!,HUDAssetThreshold,2,1),AND(Q26="",R26="")),P26*0.4%,IF(R26=0,P26*Q26,R26)) ->  | W26: =IFERROR(IF(VLOOKUP($C26,Asset_Description_Type,2,0)="NNPP",$D26,0),0) -> 0 | X26: =IFERROR(IF(VLOOKUP($C26,Asset_Description_Type,2,0)="RE",$D26,0),0) -> 0 | Y26: =IF(AND(NNPP_Total>VLOOKUP(MI_Date,HUDAssetThreshold,2,1),AND($E26="",$F26="")),W26*VLOOKUP(MI_Date,HUDImputedRate,3,1),IF($F26=0,W26*$E26,$F26)) ->  | Z26: =IF(AND(Net_Family_Assets_Total>VLOOKUP(MI_Date,HUDAssetThreshold,2,1),AND($E26="",$F26="")),X26*VLOOKUP(MI_Date,HUDImputedRate,3,1),IF($F26=0,X26*$E26,$F26)) -> 
G27: =IFERROR(SUM(Y27:Z27),0) -> 0 | S27: =IF(AND(#REF!>VLOOKUP(#REF!,HUDAssetThreshold,2,1),AND(Q27="",R27="")),P27*0.4%,IF(R27=0,P27*Q27,R27)) ->  | W27: 0 | X27: 0
G28: =IFERROR(SUM(Y28:Z28),0) -> 0 | S28: =IF(AND(#REF!>VLOOKUP(#REF!,HUDAssetThreshold,2,1),AND(Q28="",R28="")),P28*0.4%,IF(R28=0,P28*Q28,R28)) ->  | W28: 0 | X28: 0
G29: 0 | S29: =IF(AND(#REF!>VLOOKUP(#REF!,HUDAssetThreshold,2,1),AND(Q29="",R29="")),P29*0.4%,IF(R29=0,P29*Q29,R29)) ->  | W29: 0 | X29: 0
G30: 0 | S30: =IF(AND(#REF!>VLOOKUP(#REF!,HUDAssetThreshold,2,1),AND(Q30="",R30="")),P30*0.4%,IF(R30=0,P30*Q30,R30)) ->  | W30: 0 | X30: 0
G31: 0 | S31: =IF(AND(#REF!>VLOOKUP(#REF!,HUDAssetThreshold,2,1),AND(Q31="",R31="")),P31*0.4%,IF(R31=0,P31*Q31,R31)) ->  | W31: 0 | X31: 0
G32: 0 | S32: =IF(AND(#REF!>VLOOKUP(#REF!,HUDAssetThreshold,2,1),AND(Q32="",R32="")),P32*0.4%,IF(R32=0,P32*Q32,R32)) ->  | W32: 0 | X32: 0
G33: 0 | S33: =IF(AND(#REF!>VLOOKUP(#REF!,HUDAssetThreshold,2,1),AND(Q33="",R33="")),P33*0.4%,IF(R33=0,P33*Q33,R33)) ->  | W33: 0 | X33: 0
G34: 0 | S34: =IF(AND(#REF!>VLOOKUP(#REF!,HUDAssetThreshold,2,1),AND(Q34="",R34="")),P34*0.4%,IF(R34=0,P34*Q34,R34)) ->  | W34: 0 | X34: 0
G35: 0 | S35: =IF(AND(#REF!>VLOOKUP(#REF!,HUDAssetThreshold,2,1),AND(Q35="",R35="")),P35*0.4%,IF(R35=0,P35*Q35,R35)) ->  | W35: 0 | X35: 0
G36: 0 | S36: =IF(AND(#REF!>VLOOKUP(#REF!,HUDAssetThreshold,2,1),AND(Q36="",R36="")),P36*0.4%,IF(R36=0,P36*Q36,R36)) ->  | W36: 0 | X36: 0
G37: 0 | S37: =IF(AND(#REF!>VLOOKUP(#REF!,HUDAssetThreshold,2,1),AND(Q37="",R37="")),P37*0.4%,IF(R37=0,P37*Q37,R37)) ->  | W37: 0 | X37: 0
G38: 0 | S38: =IF(AND(#REF!>VLOOKUP(#REF!,HUDAssetThreshold,2,1),AND(Q38="",R38="")),P38*0.4%,IF(R38=0,P38*Q38,R38)) ->  | W38: 0 | X38: 0
G39: 0 | S39: =IF(AND(#REF!>VLOOKUP(#REF!,HUDAssetThreshold,2,1),AND(Q39="",R39="")),P39*0.4%,IF(R39=0,P39*Q39,R39)) ->  | W39: 0 | X39: 0
G40: 0 | S40: =IF(AND(#REF!>VLOOKUP(#REF!,HUDAssetThreshold,2,1),AND(Q40="",R40="")),P40*0.4%,IF(R40=0,P40*Q40,R40)) ->  | W40: 0 | X40: 0
G41: 0 | S41: =IF(AND(#REF!>VLOOKUP(#REF!,HUDAssetThreshold,2,1),AND(Q41="",R41="")),P41*0.4%,IF(R41=0,P41*Q41,R41)) ->  | W41: 0 | X41: 0
G42: 0 | S42: =IF(AND(#REF!>VLOOKUP(#REF!,HUDAssetThreshold,2,1),AND(Q42="",R42="")),P42*0.4%,IF(R42=0,P42*Q42,R42)) ->  | W42: 0 | X42: 0
G43: 0 | S43: =IF(AND(#REF!>VLOOKUP(#REF!,HUDAssetThreshold,2,1),AND(Q43="",R43="")),P43*0.4%,IF(R43=0,P43*Q43,R43)) ->  | W43: 0 | X43: 0
G44: =IFERROR(SUM(Y44:Z44),0) -> 0 | S44: =IF(AND(#REF!>VLOOKUP(#REF!,HUDAssetThreshold,2,1),AND(Q44="",R44="")),P44*0.4%,IF(R44=0,P44*Q44,R44)) ->  | W44: 0 | X44: 0
B45: ASSETS TOTAL | D45: =SUM(D26:D44) -> 0 | G45: =SUM(G26:G44) -> 0 | N45: ASSETS TOTAL | P45: =SUM(P26:P44) -> 0 | S45: =SUM(S26:S44) ->  | W45: =SUM(W26:W44) -> 0 | X45: =SUM(X26:X44) -> 0
